{"text_format":"3","workbook":"xlsx","n_sheets":3,"sheets":["بيانات خارطة الطريق","خارطة الطريق المرنة","حول"],"not_rendered":{"defined_names":5},"read":"whole","date_system":"1900"}

{"sheet":"بيانات خارطة الطريق","index":0,"n_rows":13,"n_cols":7,"rows_kept":13,"merged":[[12,1,12,4]]}
["قم بإنشاء \"خارطة الطريق المرنة\" عن طريق إدخال الأحداث الرئيسية أو الأنشطة المهمة في الجدول \"بيانات خارطة الطريق\" في ورقة العمل هذه.\nيوجد عنوان ورقة العمل هذه في الخلية B1. \nالمعلومات حول كيفية استخدام ورقة العمل هذه بما في ذلك إرشادات برامج قراءة الشاشة، متوفرة في \"حول\" ورقة العمل.\nتابع التنقل لأسفل العمود A للحصول على إرشادات إضافية.","بيانات المخطط الزمني المرن"]
["عناوين الأعمدة موجودة في الخلايا من B2 إلى E2. استخدم عوامل تصفية العناوين لفرز الجدول والعثور على عناصر محددة.\nتعمل \"خارطة الطريق المرنة\" بشكل أفضل عندما يتم فرز الجدول بالترتيب التصاعدي حسب الأولوية، متبوعة بالحدث الرئيسي أو النشاط \nنموذج البيانات موجود في الجدول \"بيانات خارطة الطريق\" من الخلايا من B3 إلى E12. \nعند اكتمال حدث رئيسي أو نشاط، قم بتحديث حقل النتيجة المقابل لعرض النتائج في ورقة العمل \"خارطة الطريق المرنة\". أدخل \"بدون تغيير\" لتمييز المراحل الرئيسية بدون أي تأثير.\nانتقل إلى الخلية A13 للحصول على الإرشاد التالي.\n","الهدف","الحدث الرئيسي أو النشاط","الأولوية","النتيجة",null,"<-- فرز الجدول حسب الأولوية والحدث الرئيسي أو النشاط، بترتيب تصاعدي"]
[null,"الحالي","النشاط 1\nإنشاء نموذج أولي","1 - مرتفع",null,null,"<-- إضافة نتيجة لكل حدث رئيسي مكتمل. أدخل \"بدون تغيير\" لتمييز المراحل الرئيسية بدون أي تأثير."]
[null,"قصيرة الأمد","النشاط 2\nنموذج عرض توضيحي أولي","1 - مرتفع"]
[null,"الحالي","نشاط 6","1 - مرتفع"]
[null,"المستقبل","النشاط 7\n\"تنمية التعهيد الخارجي\" للمرحلة الأولى من التنفيذ","1 - مرتفع"]
[null,"مكتملة","النشاط 9\nالمرحلة الأولى تمت الموافقة عليها","1 - مرتفع","انخفاض بنسبة 10٪"]
[null,"المستقبل","النشاط 10","2 - متوسط"]
[null,"قصيرة الأمد","النشاط 8","2 - متوسط"]
[null,"مكتملة","النشاط 3","3 - منخفض","بدون تغيير"]
[null,"المستقبل","نشاط 4","3 - منخفض"]
[null,"الحالي","النشاط 5","3 - منخفض"]
["قم بإضافة عناصر جديدة بإدراج صفوف جديدة في الجدول أعلى هذا السطر.\nهذا هو الإرشاد الأخير في ورقة العمل هذه.","قم بإضافة عناصر جديدة بإدراج صفوف جديدة أعلى هذا السطر"]

{"sheet":"خارطة الطريق المرنة","index":1,"n_rows":100,"n_cols":8,"rows_kept":100}
["توجد \"خارطة الطريق المرنة\" تعرض الأحداث الرئيسية والأنشطة من ورقة عمل \"بيانات خارطة الطريق\" في ورقة العمل هذه. \nيوجد العنوان في الخلية B1. \nيتم تمييز النتائج التي تحتوي على العبارة \"بدون تغيير\" باللون البرتقالي الفاتح، rgb(255, 230, 210).\nيتم تمييز الأحداث الرئيسية أو الأنشطة باللون الأخضر الخفيف، rgb(237,251,219).","خارطة الطريق المرنة"]
["توجد عناوين التخطيط في الخلايا B2 وD2 وF2 وH2. يقرؤون: مكتمل، حالي، قصير الأمد، والمستقبل. قم بتعديل هذه العناوين لتغيير قيم التحديد \"الهدف\" في جدول \"بيانات خارطة الطريق\" في ورقة العمل \"بيانات خارطة الطريق\".\nتحتوي الخلايا من B3 إلى H20 على الأحداث الرئيسية والأنشطة الخاصة بالعناوين الموجودة في هذا الصف. \nيتم إنشاء الأحداث الرئيسية والأنشطة في ورقة العمل \"بيانات خارطة الطريق\".\nلا تعدل أو تحذف الإدخالات في ورقة العمل هذه. قم بتحديث الجدول \"بيانات خارطة الطريق\" في ورقة العمل \"بيانات خارطة الطريق\" لتحديث المحتوى في ورقة العمل هذه.\nهذا هو الإرشاد الأخير في ورقة العمل هذه.","مكتملة",null,"الحالي",null,"قصيرة الأمد",null,"المستقبل"]
[null,{"$f":"IFERROR(INDEX(النشاط,SMALL(IF(الهدف=$B$2,ROW(النشاط)-MIN(ROW(النشاط))+1),ROWS($B$3:B3)))&\" \"&CHAR(10)&(INDEX(النتيجة,SMALL(IF(الهدف=$B$2,ROW(النتيجة)-MIN(ROW(النتيجة))+1),ROWS($B$3:B3))))&CHAR(10),\"\")","v":"النشاط 9\nالمرحلة الأولى تمت الموافقة عليها \nانخفاض بنسبة 10٪\n"},null,{"$f":"IFERROR(INDEX(النشاط,SMALL(IF(الهدف=$D$2,ROW(النشاط)-MIN(ROW(النشاط))+1),ROWS($B$3:B3)))&CHAR(10),\"\")","v":"النشاط 1\nإنشاء نموذج أولي\n"},null,{"$f":"IFERROR(INDEX(النشاط,SMALL(IF(الهدف=$F$2,ROW(النشاط)-MIN(ROW(النشاط))+1),ROWS($B$3:B3)))&CHAR(10),\"\")","v":"النشاط 2\nنموذج عرض توضيحي أولي\n"},null,{"$f":"IFERROR(INDEX(النشاط,SMALL(IF(الهدف=$H$2,ROW(النشاط)-MIN(ROW(النشاط))+1),ROWS($B$3:B3)))&CHAR(10),\"\")","v":"النشاط 7\n\"تنمية التعهيد الخارجي\" للمرحلة الأولى من التنفيذ\n"}]
[null,{"$f":"IFERROR(INDEX(النشاط,SMALL(IF(الهدف=$B$2,ROW(النشاط)-MIN(ROW(النشاط))+1),ROWS($B$3:B4)))&\" \"&CHAR(10)&(INDEX(النتيجة,SMALL(IF(الهدف=$B$2,ROW(النتيجة)-MIN(ROW(النتيجة))+1),ROWS($B$3:B4))))&CHAR(10),\"\")","v":"النشاط 3 \nبدون تغيير\n"},null,{"$f":"IFERROR(INDEX(النشاط,SMALL(IF(الهدف=$D$2,ROW(النشاط)-MIN(ROW(النشاط))+1),ROWS($B$3:B4)))&CHAR(10),\"\")","v":"نشاط 6\n"},null,{"$f":"IFERROR(INDEX(النشاط,SMALL(IF(الهدف=$F$2,ROW(النشاط)-MIN(ROW(النشاط))+1),ROWS($B$3:B4)))&CHAR(10),\"\")","v":"النشاط 8\n"},null,{"$f":"IFERROR(INDEX(النشاط,SMALL(IF(الهدف=$H$2,ROW(النشاط)-MIN(ROW(النشاط))+1),ROWS($B$3:B4)))&CHAR(10),\"\")","v":"النشاط 10\n"}]
[null,{"$f":"IFERROR(INDEX(النشاط,SMALL(IF(الهدف=$B$2,ROW(النشاط)-MIN(ROW(النشاط))+1),ROWS($B$3:B5)))&\" \"&CHAR(10)&(INDEX(النتيجة,SMALL(IF(الهدف=$B$2,ROW(النتيجة)-MIN(ROW(النتيجة))+1),ROWS($B$3:B5))))&CHAR(10),\"\")","v":""},null,{"$f":"IFERROR(INDEX(النشاط,SMALL(IF(الهدف=$D$2,ROW(النشاط)-MIN(ROW(النشاط))+1),ROWS($B$3:B5)))&CHAR(10),\"\")","v":"النشاط 5\n"},null,{"$f":"IFERROR(INDEX(النشاط,SMALL(IF(الهدف=$F$2,ROW(النشاط)-MIN(ROW(النشاط))+1),ROWS($B$3:B5)))&CHAR(10),\"\")","v":""},null,{"$f":"IFERROR(INDEX(النشاط,SMALL(IF(الهدف=$H$2,ROW(النشاط)-MIN(ROW(النشاط))+1),ROWS($B$3:B5)))&CHAR(10),\"\")","v":"نشاط 4\n"}]
[null,{"$f":"IFERROR(INDEX(النشاط,SMALL(IF(الهدف=$B$2,ROW(النشاط)-MIN(ROW(النشاط))+1),ROWS($B$3:B6)))&\" \"&CHAR(10)&(INDEX(النتيجة,SMALL(IF(الهدف=$B$2,ROW(النتيجة)-MIN(ROW(النتيجة))+1),ROWS($B$3:B6))))&CHAR(10),\"\")","v":""},null,{"$f":"IFERROR(INDEX(النشاط,SMALL(IF(الهدف=$D$2,ROW(النشاط)-MIN(ROW(النشاط))+1),ROWS($B$3:B6)))&CHAR(10),\"\")","v":""},null,{"$f":"IFERROR(INDEX(النشاط,SMALL(IF(الهدف=$F$2,ROW(النشاط)-MIN(ROW(النشاط))+1),ROWS($B$3:B6)))&CHAR(10),\"\")","v":""},null,{"$f":"IFERROR(INDEX(النشاط,SMALL(IF(الهدف=$H$2,ROW(النشاط)-MIN(ROW(النشاط))+1),ROWS($B$3:B6)))&CHAR(10),\"\")","v":""}]
[null,{"$f":"IFERROR(INDEX(النشاط,SMALL(IF(الهدف=$B$2,ROW(النشاط)-MIN(ROW(النشاط))+1),ROWS($B$3:B7)))&\" \"&CHAR(10)&(INDEX(النتيجة,SMALL(IF(الهدف=$B$2,ROW(النتيجة)-MIN(ROW(النتيجة))+1),ROWS($B$3:B7))))&CHAR(10),\"\")","v":""},null,{"$f":"IFERROR(INDEX(النشاط,SMALL(IF(الهدف=$D$2,ROW(النشاط)-MIN(ROW(النشاط))+1),ROWS($B$3:B7)))&CHAR(10),\"\")","v":""},null,{"$f":"IFERROR(INDEX(النشاط,SMALL(IF(الهدف=$F$2,ROW(النشاط)-MIN(ROW(النشاط))+1),ROWS($B$3:B7)))&CHAR(10),\"\")","v":""},null,{"$f":"IFERROR(INDEX(النشاط,SMALL(IF(الهدف=$H$2,ROW(النشاط)-MIN(ROW(النشاط))+1),ROWS($B$3:B7)))&CHAR(10),\"\")","v":""}]
[null,{"$f":"IFERROR(INDEX(النشاط,SMALL(IF(الهدف=$B$2,ROW(النشاط)-MIN(ROW(النشاط))+1),ROWS($B$3:B8)))&\" \"&CHAR(10)&(INDEX(النتيجة,SMALL(IF(الهدف=$B$2,ROW(النتيجة)-MIN(ROW(النتيجة))+1),ROWS($B$3:B8))))&CHAR(10),\"\")","v":""},null,{"$f":"IFERROR(INDEX(النشاط,SMALL(IF(الهدف=$D$2,ROW(النشاط)-MIN(ROW(النشاط))+1),ROWS($B$3:B8)))&CHAR(10),\"\")","v":""},null,{"$f":"IFERROR(INDEX(النشاط,SMALL(IF(الهدف=$F$2,ROW(النشاط)-MIN(ROW(النشاط))+1),ROWS($B$3:B8)))&CHAR(10),\"\")","v":""},null,{"$f":"IFERROR(INDEX(النشاط,SMALL(IF(الهدف=$H$2,ROW(النشاط)-MIN(ROW(النشاط))+1),ROWS($B$3:B8)))&CHAR(10),\"\")","v":""}]
[null,{"$f":"IFERROR(INDEX(النشاط,SMALL(IF(الهدف=$B$2,ROW(النشاط)-MIN(ROW(النشاط))+1),ROWS($B$3:B9)))&\" \"&CHAR(10)&(INDEX(النتيجة,SMALL(IF(الهدف=$B$2,ROW(النتيجة)-MIN(ROW(النتيجة))+1),ROWS($B$3:B9))))&CHAR(10),\"\")","v":""},null,{"$f":"IFERROR(INDEX(النشاط,SMALL(IF(الهدف=$D$2,ROW(النشاط)-MIN(ROW(النشاط))+1),ROWS($B$3:B9)))&CHAR(10),\"\")","v":""},null,{"$f":"IFERROR(INDEX(النشاط,SMALL(IF(الهدف=$F$2,ROW(النشاط)-MIN(ROW(النشاط))+1),ROWS($B$3:B9)))&CHAR(10),\"\")","v":""},null,{"$f":"IFERROR(INDEX(النشاط,SMALL(IF(الهدف=$H$2,ROW(النشاط)-MIN(ROW(النشاط))+1),ROWS($B$3:B9)))&CHAR(10),\"\")","v":""}]
[null,{"$f":"IFERROR(INDEX(النشاط,SMALL(IF(الهدف=$B$2,ROW(النشاط)-MIN(ROW(النشاط))+1),ROWS($B$3:B10)))&\" \"&CHAR(10)&(INDEX(النتيجة,SMALL(IF(الهدف=$B$2,ROW(النتيجة)-MIN(ROW(النتيجة))+1),ROWS($B$3:B10))))&CHAR(10),\"\")","v":""},null,{"$f":"IFERROR(INDEX(النشاط,SMALL(IF(الهدف=$D$2,ROW(النشاط)-MIN(ROW(النشاط))+1),ROWS($B$3:B10)))&CHAR(10),\"\")","v":""},null,{"$f":"IFERROR(INDEX(النشاط,SMALL(IF(الهدف=$F$2,ROW(النشاط)-MIN(ROW(النشاط))+1),ROWS($B$3:B10)))&CHAR(10),\"\")","v":""},null,{"$f":"IFERROR(INDEX(النشاط,SMALL(IF(الهدف=$H$2,ROW(النشاط)-MIN(ROW(النشاط))+1),ROWS($B$3:B10)))&CHAR(10),\"\")","v":""}]
[null,{"$f":"IFERROR(INDEX(النشاط,SMALL(IF(الهدف=$B$2,ROW(النشاط)-MIN(ROW(النشاط))+1),ROWS($B$3:B11)))&\" \"&CHAR(10)&(INDEX(النتيجة,SMALL(IF(الهدف=$B$2,ROW(النتيجة)-MIN(ROW(النتيجة))+1),ROWS($B$3:B11))))&CHAR(10),\"\")","v":""},null,{"$f":"IFERROR(INDEX(النشاط,SMALL(IF(الهدف=$D$2,ROW(النشاط)-MIN(ROW(النشاط))+1),ROWS($B$3:B11)))&CHAR(10),\"\")","v":""},null,{"$f":"IFERROR(INDEX(النشاط,SMALL(IF(الهدف=$F$2,ROW(النشاط)-MIN(ROW(النشاط))+1),ROWS($B$3:B11)))&CHAR(10),\"\")","v":""},null,{"$f":"IFERROR(INDEX(النشاط,SMALL(IF(الهدف=$H$2,ROW(النشاط)-MIN(ROW(النشاط))+1),ROWS($B$3:B11)))&CHAR(10),\"\")","v":""}]
[null,{"$f":"IFERROR(INDEX(النشاط,SMALL(IF(الهدف=$B$2,ROW(النشاط)-MIN(ROW(النشاط))+1),ROWS($B$3:B12)))&\" \"&CHAR(10)&(INDEX(النتيجة,SMALL(IF(الهدف=$B$2,ROW(النتيجة)-MIN(ROW(النتيجة))+1),ROWS($B$3:B12))))&CHAR(10),\"\")","v":""},null,{"$f":"IFERROR(INDEX(النشاط,SMALL(IF(الهدف=$D$2,ROW(النشاط)-MIN(ROW(النشاط))+1),ROWS($B$3:B12)))&CHAR(10),\"\")","v":""},null,{"$f":"IFERROR(INDEX(النشاط,SMALL(IF(الهدف=$F$2,ROW(النشاط)-MIN(ROW(النشاط))+1),ROWS($B$3:B12)))&CHAR(10),\"\")","v":""},null,{"$f":"IFERROR(INDEX(النشاط,SMALL(IF(الهدف=$H$2,ROW(النشاط)-MIN(ROW(النشاط))+1),ROWS($B$3:B12)))&CHAR(10),\"\")","v":""}]
[null,{"$f":"IFERROR(INDEX(النشاط,SMALL(IF(الهدف=$B$2,ROW(النشاط)-MIN(ROW(النشاط))+1),ROWS($B$3:B13)))&\" \"&CHAR(10)&(INDEX(النتيجة,SMALL(IF(الهدف=$B$2,ROW(النتيجة)-MIN(ROW(النتيجة))+1),ROWS($B$3:B13))))&CHAR(10),\"\")","v":""},null,{"$f":"IFERROR(INDEX(النشاط,SMALL(IF(الهدف=$D$2,ROW(النشاط)-MIN(ROW(النشاط))+1),ROWS($B$3:B13)))&CHAR(10),\"\")","v":""},null,{"$f":"IFERROR(INDEX(النشاط,SMALL(IF(الهدف=$F$2,ROW(النشاط)-MIN(ROW(النشاط))+1),ROWS($B$3:B13)))&CHAR(10),\"\")","v":""},null,{"$f":"IFERROR(INDEX(النشاط,SMALL(IF(الهدف=$H$2,ROW(النشاط)-MIN(ROW(النشاط))+1),ROWS($B$3:B13)))&CHAR(10),\"\")","v":""}]
[null,{"$f":"IFERROR(INDEX(النشاط,SMALL(IF(الهدف=$B$2,ROW(النشاط)-MIN(ROW(النشاط))+1),ROWS($B$3:B14)))&\" \"&CHAR(10)&(INDEX(النتيجة,SMALL(IF(الهدف=$B$2,ROW(النتيجة)-MIN(ROW(النتيجة))+1),ROWS($B$3:B14))))&CHAR(10),\"\")","v":""},null,{"$f":"IFERROR(INDEX(النشاط,SMALL(IF(الهدف=$D$2,ROW(النشاط)-MIN(ROW(النشاط))+1),ROWS($B$3:B14)))&CHAR(10),\"\")","v":""},null,{"$f":"IFERROR(INDEX(النشاط,SMALL(IF(الهدف=$F$2,ROW(النشاط)-MIN(ROW(النشاط))+1),ROWS($B$3:B14)))&CHAR(10),\"\")","v":""},null,{"$f":"IFERROR(INDEX(النشاط,SMALL(IF(الهدف=$H$2,ROW(النشاط)-MIN(ROW(النشاط))+1),ROWS($B$3:B14)))&CHAR(10),\"\")","v":""}]
[null,{"$f":"IFERROR(INDEX(النشاط,SMALL(IF(الهدف=$B$2,ROW(النشاط)-MIN(ROW(النشاط))+1),ROWS($B$3:B15)))&\" \"&CHAR(10)&(INDEX(النتيجة,SMALL(IF(الهدف=$B$2,ROW(النتيجة)-MIN(ROW(النتيجة))+1),ROWS($B$3:B15))))&CHAR(10),\"\")","v":""},null,{"$f":"IFERROR(INDEX(النشاط,SMALL(IF(الهدف=$D$2,ROW(النشاط)-MIN(ROW(النشاط))+1),ROWS($B$3:B15)))&CHAR(10),\"\")","v":""},null,{"$f":"IFERROR(INDEX(النشاط,SMALL(IF(الهدف=$F$2,ROW(النشاط)-MIN(ROW(النشاط))+1),ROWS($B$3:B15)))&CHAR(10),\"\")","v":""},null,{"$f":"IFERROR(INDEX(النشاط,SMALL(IF(الهدف=$H$2,ROW(النشاط)-MIN(ROW(النشاط))+1),ROWS($B$3:B15)))&CHAR(10),\"\")","v":""}]
[null,{"$f":"IFERROR(INDEX(النشاط,SMALL(IF(الهدف=$B$2,ROW(النشاط)-MIN(ROW(النشاط))+1),ROWS($B$3:B16)))&\" \"&CHAR(10)&(INDEX(النتيجة,SMALL(IF(الهدف=$B$2,ROW(النتيجة)-MIN(ROW(النتيجة))+1),ROWS($B$3:B16))))&CHAR(10),\"\")","v":""},null,{"$f":"IFERROR(INDEX(النشاط,SMALL(IF(الهدف=$D$2,ROW(النشاط)-MIN(ROW(النشاط))+1),ROWS($B$3:B16)))&CHAR(10),\"\")","v":""},null,{"$f":"IFERROR(INDEX(النشاط,SMALL(IF(الهدف=$F$2,ROW(النشاط)-MIN(ROW(النشاط))+1),ROWS($B$3:B16)))&CHAR(10),\"\")","v":""},null,{"$f":"IFERROR(INDEX(النشاط,SMALL(IF(الهدف=$H$2,ROW(النشاط)-MIN(ROW(النشاط))+1),ROWS($B$3:B16)))&CHAR(10),\"\")","v":""}]
[null,{"$f":"IFERROR(INDEX(النشاط,SMALL(IF(الهدف=$B$2,ROW(النشاط)-MIN(ROW(النشاط))+1),ROWS($B$3:B17)))&\" \"&CHAR(10)&(INDEX(النتيجة,SMALL(IF(الهدف=$B$2,ROW(النتيجة)-MIN(ROW(النتيجة))+1),ROWS($B$3:B17))))&CHAR(10),\"\")","v":""},null,{"$f":"IFERROR(INDEX(النشاط,SMALL(IF(الهدف=$D$2,ROW(النشاط)-MIN(ROW(النشاط))+1),ROWS($B$3:B17)))&CHAR(10),\"\")","v":""},null,{"$f":"IFERROR(INDEX(النشاط,SMALL(IF(الهدف=$F$2,ROW(النشاط)-MIN(ROW(النشاط))+1),ROWS($B$3:B17)))&CHAR(10),\"\")","v":""},null,{"$f":"IFERROR(INDEX(النشاط,SMALL(IF(الهدف=$H$2,ROW(النشاط)-MIN(ROW(النشاط))+1),ROWS($B$3:B17)))&CHAR(10),\"\")","v":""}]
[null,{"$f":"IFERROR(INDEX(النشاط,SMALL(IF(الهدف=$B$2,ROW(النشاط)-MIN(ROW(النشاط))+1),ROWS($B$3:B18)))&\" \"&CHAR(10)&(INDEX(النتيجة,SMALL(IF(الهدف=$B$2,ROW(النتيجة)-MIN(ROW(النتيجة))+1),ROWS($B$3:B18))))&CHAR(10),\"\")","v":""},null,{"$f":"IFERROR(INDEX(النشاط,SMALL(IF(الهدف=$D$2,ROW(النشاط)-MIN(ROW(النشاط))+1),ROWS($B$3:B18)))&CHAR(10),\"\")","v":""},null,{"$f":"IFERROR(INDEX(النشاط,SMALL(IF(الهدف=$F$2,ROW(النشاط)-MIN(ROW(النشاط))+1),ROWS($B$3:B18)))&CHAR(10),\"\")","v":""},null,{"$f":"IFERROR(INDEX(النشاط,SMALL(IF(الهدف=$H$2,ROW(النشاط)-MIN(ROW(النشاط))+1),ROWS($B$3:B18)))&CHAR(10),\"\")","v":""}]
[null,{"$f":"IFERROR(INDEX(النشاط,SMALL(IF(الهدف=$B$2,ROW(النشاط)-MIN(ROW(النشاط))+1),ROWS($B$3:B19)))&\" \"&CHAR(10)&(INDEX(النتيجة,SMALL(IF(الهدف=$B$2,ROW(النتيجة)-MIN(ROW(النتيجة))+1),ROWS($B$3:B19))))&CHAR(10),\"\")","v":""},null,{"$f":"IFERROR(INDEX(النشاط,SMALL(IF(الهدف=$D$2,ROW(النشاط)-MIN(ROW(النشاط))+1),ROWS($B$3:B19)))&CHAR(10),\"\")","v":""},null,{"$f":"IFERROR(INDEX(النشاط,SMALL(IF(الهدف=$F$2,ROW(النشاط)-MIN(ROW(النشاط))+1),ROWS($B$3:B19)))&CHAR(10),\"\")","v":""},null,{"$f":"IFERROR(INDEX(النشاط,SMALL(IF(الهدف=$H$2,ROW(النشاط)-MIN(ROW(النشاط))+1),ROWS($B$3:B19)))&CHAR(10),\"\")","v":""}]
[null,{"$f":"IFERROR(INDEX(النشاط,SMALL(IF(الهدف=$B$2,ROW(النشاط)-MIN(ROW(النشاط))+1),ROWS($B$3:B20)))&\" \"&CHAR(10)&(INDEX(النتيجة,SMALL(IF(الهدف=$B$2,ROW(النتيجة)-MIN(ROW(النتيجة))+1),ROWS($B$3:B20))))&CHAR(10),\"\")","v":""},null,{"$f":"IFERROR(INDEX(النشاط,SMALL(IF(الهدف=$D$2,ROW(النشاط)-MIN(ROW(النشاط))+1),ROWS($B$3:B20)))&CHAR(10),\"\")","v":""},null,{"$f":"IFERROR(INDEX(النشاط,SMALL(IF(الهدف=$F$2,ROW(النشاط)-MIN(ROW(النشاط))+1),ROWS($B$3:B20)))&CHAR(10),\"\")","v":""},null,{"$f":"IFERROR(INDEX(النشاط,SMALL(IF(الهدف=$H$2,ROW(النشاط)-MIN(ROW(النشاط))+1),ROWS($B$3:B20)))&CHAR(10),\"\")","v":""}]
[null,{"$f":"IFERROR(INDEX(النشاط,SMALL(IF(الهدف=$B$2,ROW(النشاط)-MIN(ROW(النشاط))+1),ROWS($B$3:B21)))&\" \"&CHAR(10)&(INDEX(النتيجة,SMALL(IF(الهدف=$B$2,ROW(النتيجة)-MIN(ROW(النتيجة))+1),ROWS($B$3:B21))))&CHAR(10),\"\")","v":""},null,{"$f":"IFERROR(INDEX(النشاط,SMALL(IF(الهدف=$D$2,ROW(النشاط)-MIN(ROW(النشاط))+1),ROWS($B$3:B21)))&CHAR(10),\"\")","v":""},null,{"$f":"IFERROR(INDEX(النشاط,SMALL(IF(الهدف=$F$2,ROW(النشاط)-MIN(ROW(النشاط))+1),ROWS($B$3:B21)))&CHAR(10),\"\")","v":""},null,{"$f":"IFERROR(INDEX(النشاط,SMALL(IF(الهدف=$H$2,ROW(النشاط)-MIN(ROW(النشاط))+1),ROWS($B$3:B21)))&CHAR(10),\"\")","v":""}]
[null,{"$f":"IFERROR(INDEX(النشاط,SMALL(IF(الهدف=$B$2,ROW(النشاط)-MIN(ROW(النشاط))+1),ROWS($B$3:B22)))&\" \"&CHAR(10)&(INDEX(النتيجة,SMALL(IF(الهدف=$B$2,ROW(النتيجة)-MIN(ROW(النتيجة))+1),ROWS($B$3:B22))))&CHAR(10),\"\")","v":""},null,{"$f":"IFERROR(INDEX(النشاط,SMALL(IF(الهدف=$D$2,ROW(النشاط)-MIN(ROW(النشاط))+1),ROWS($B$3:B22)))&CHAR(10),\"\")","v":""},null,{"$f":"IFERROR(INDEX(النشاط,SMALL(IF(الهدف=$F$2,ROW(النشاط)-MIN(ROW(النشاط))+1),ROWS($B$3:B22)))&CHAR(10),\"\")","v":""},null,{"$f":"IFERROR(INDEX(النشاط,SMALL(IF(الهدف=$H$2,ROW(النشاط)-MIN(ROW(النشاط))+1),ROWS($B$3:B22)))&CHAR(10),\"\")","v":""}]
[null,{"$f":"IFERROR(INDEX(النشاط,SMALL(IF(الهدف=$B$2,ROW(النشاط)-MIN(ROW(النشاط))+1),ROWS($B$3:B23)))&\" \"&CHAR(10)&(INDEX(النتيجة,SMALL(IF(الهدف=$B$2,ROW(النتيجة)-MIN(ROW(النتيجة))+1),ROWS($B$3:B23))))&CHAR(10),\"\")","v":""},null,{"$f":"IFERROR(INDEX(النشاط,SMALL(IF(الهدف=$D$2,ROW(النشاط)-MIN(ROW(النشاط))+1),ROWS($B$3:B23)))&CHAR(10),\"\")","v":""},null,{"$f":"IFERROR(INDEX(النشاط,SMALL(IF(الهدف=$F$2,ROW(النشاط)-MIN(ROW(النشاط))+1),ROWS($B$3:B23)))&CHAR(10),\"\")","v":""},null,{"$f":"IFERROR(INDEX(النشاط,SMALL(IF(الهدف=$H$2,ROW(النشاط)-MIN(ROW(النشاط))+1),ROWS($B$3:B23)))&CHAR(10),\"\")","v":""}]
[null,{"$f":"IFERROR(INDEX(النشاط,SMALL(IF(الهدف=$B$2,ROW(النشاط)-MIN(ROW(النشاط))+1),ROWS($B$3:B24)))&\" \"&CHAR(10)&(INDEX(النتيجة,SMALL(IF(الهدف=$B$2,ROW(النتيجة)-MIN(ROW(النتيجة))+1),ROWS($B$3:B24))))&CHAR(10),\"\")","v":""},null,{"$f":"IFERROR(INDEX(النشاط,SMALL(IF(الهدف=$D$2,ROW(النشاط)-MIN(ROW(النشاط))+1),ROWS($B$3:B24)))&CHAR(10),\"\")","v":""},null,{"$f":"IFERROR(INDEX(النشاط,SMALL(IF(الهدف=$F$2,ROW(النشاط)-MIN(ROW(النشاط))+1),ROWS($B$3:B24)))&CHAR(10),\"\")","v":""},null,{"$f":"IFERROR(INDEX(النشاط,SMALL(IF(الهدف=$H$2,ROW(النشاط)-MIN(ROW(النشاط))+1),ROWS($B$3:B24)))&CHAR(10),\"\")","v":""}]
[null,{"$f":"IFERROR(INDEX(النشاط,SMALL(IF(الهدف=$B$2,ROW(النشاط)-MIN(ROW(النشاط))+1),ROWS($B$3:B25)))&\" \"&CHAR(10)&(INDEX(النتيجة,SMALL(IF(الهدف=$B$2,ROW(النتيجة)-MIN(ROW(النتيجة))+1),ROWS($B$3:B25))))&CHAR(10),\"\")","v":""},null,{"$f":"IFERROR(INDEX(النشاط,SMALL(IF(الهدف=$D$2,ROW(النشاط)-MIN(ROW(النشاط))+1),ROWS($B$3:B25)))&CHAR(10),\"\")","v":""},null,{"$f":"IFERROR(INDEX(النشاط,SMALL(IF(الهدف=$F$2,ROW(النشاط)-MIN(ROW(النشاط))+1),ROWS($B$3:B25)))&CHAR(10),\"\")","v":""},null,{"$f":"IFERROR(INDEX(النشاط,SMALL(IF(الهدف=$H$2,ROW(النشاط)-MIN(ROW(النشاط))+1),ROWS($B$3:B25)))&CHAR(10),\"\")","v":""}]
[null,{"$f":"IFERROR(INDEX(النشاط,SMALL(IF(الهدف=$B$2,ROW(النشاط)-MIN(ROW(النشاط))+1),ROWS($B$3:B26)))&\" \"&CHAR(10)&(INDEX(النتيجة,SMALL(IF(الهدف=$B$2,ROW(النتيجة)-MIN(ROW(النتيجة))+1),ROWS($B$3:B26))))&CHAR(10),\"\")","v":""},null,{"$f":"IFERROR(INDEX(النشاط,SMALL(IF(الهدف=$D$2,ROW(النشاط)-MIN(ROW(النشاط))+1),ROWS($B$3:B26)))&CHAR(10),\"\")","v":""},null,{"$f":"IFERROR(INDEX(النشاط,SMALL(IF(الهدف=$F$2,ROW(النشاط)-MIN(ROW(النشاط))+1),ROWS($B$3:B26)))&CHAR(10),\"\")","v":""},null,{"$f":"IFERROR(INDEX(النشاط,SMALL(IF(الهدف=$H$2,ROW(النشاط)-MIN(ROW(النشاط))+1),ROWS($B$3:B26)))&CHAR(10),\"\")","v":""}]
[null,{"$f":"IFERROR(INDEX(النشاط,SMALL(IF(الهدف=$B$2,ROW(النشاط)-MIN(ROW(النشاط))+1),ROWS($B$3:B27)))&\" \"&CHAR(10)&(INDEX(النتيجة,SMALL(IF(الهدف=$B$2,ROW(النتيجة)-MIN(ROW(النتيجة))+1),ROWS($B$3:B27))))&CHAR(10),\"\")","v":""},null,{"$f":"IFERROR(INDEX(النشاط,SMALL(IF(الهدف=$D$2,ROW(النشاط)-MIN(ROW(النشاط))+1),ROWS($B$3:B27)))&CHAR(10),\"\")","v":""},null,{"$f":"IFERROR(INDEX(النشاط,SMALL(IF(الهدف=$F$2,ROW(النشاط)-MIN(ROW(النشاط))+1),ROWS($B$3:B27)))&CHAR(10),\"\")","v":""},null,{"$f":"IFERROR(INDEX(النشاط,SMALL(IF(الهدف=$H$2,ROW(النشاط)-MIN(ROW(النشاط))+1),ROWS($B$3:B27)))&CHAR(10),\"\")","v":""}]
[null,{"$f":"IFERROR(INDEX(النشاط,SMALL(IF(الهدف=$B$2,ROW(النشاط)-MIN(ROW(النشاط))+1),ROWS($B$3:B28)))&\" \"&CHAR(10)&(INDEX(النتيجة,SMALL(IF(الهدف=$B$2,ROW(النتيجة)-MIN(ROW(النتيجة))+1),ROWS($B$3:B28))))&CHAR(10),\"\")","v":""},null,{"$f":"IFERROR(INDEX(النشاط,SMALL(IF(الهدف=$D$2,ROW(النشاط)-MIN(ROW(النشاط))+1),ROWS($B$3:B28)))&CHAR(10),\"\")","v":""},null,{"$f":"IFERROR(INDEX(النشاط,SMALL(IF(الهدف=$F$2,ROW(النشاط)-MIN(ROW(النشاط))+1),ROWS($B$3:B28)))&CHAR(10),\"\")","v":""},null,{"$f":"IFERROR(INDEX(النشاط,SMALL(IF(الهدف=$H$2,ROW(النشاط)-MIN(ROW(النشاط))+1),ROWS($B$3:B28)))&CHAR(10),\"\")","v":""}]
[null,{"$f":"IFERROR(INDEX(النشاط,SMALL(IF(الهدف=$B$2,ROW(النشاط)-MIN(ROW(النشاط))+1),ROWS($B$3:B29)))&\" \"&CHAR(10)&(INDEX(النتيجة,SMALL(IF(الهدف=$B$2,ROW(النتيجة)-MIN(ROW(النتيجة))+1),ROWS($B$3:B29))))&CHAR(10),\"\")","v":""},null,{"$f":"IFERROR(INDEX(النشاط,SMALL(IF(الهدف=$D$2,ROW(النشاط)-MIN(ROW(النشاط))+1),ROWS($B$3:B29)))&CHAR(10),\"\")","v":""},null,{"$f":"IFERROR(INDEX(النشاط,SMALL(IF(الهدف=$F$2,ROW(النشاط)-MIN(ROW(النشاط))+1),ROWS($B$3:B29)))&CHAR(10),\"\")","v":""},null,{"$f":"IFERROR(INDEX(النشاط,SMALL(IF(الهدف=$H$2,ROW(النشاط)-MIN(ROW(النشاط))+1),ROWS($B$3:B29)))&CHAR(10),\"\")","v":""}]
[null,{"$f":"IFERROR(INDEX(النشاط,SMALL(IF(الهدف=$B$2,ROW(النشاط)-MIN(ROW(النشاط))+1),ROWS($B$3:B30)))&\" \"&CHAR(10)&(INDEX(النتيجة,SMALL(IF(الهدف=$B$2,ROW(النتيجة)-MIN(ROW(النتيجة))+1),ROWS($B$3:B30))))&CHAR(10),\"\")","v":""},null,{"$f":"IFERROR(INDEX(النشاط,SMALL(IF(الهدف=$D$2,ROW(النشاط)-MIN(ROW(النشاط))+1),ROWS($B$3:B30)))&CHAR(10),\"\")","v":""},null,{"$f":"IFERROR(INDEX(النشاط,SMALL(IF(الهدف=$F$2,ROW(النشاط)-MIN(ROW(النشاط))+1),ROWS($B$3:B30)))&CHAR(10),\"\")","v":""},null,{"$f":"IFERROR(INDEX(النشاط,SMALL(IF(الهدف=$H$2,ROW(النشاط)-MIN(ROW(النشاط))+1),ROWS($B$3:B30)))&CHAR(10),\"\")","v":""}]
[null,{"$f":"IFERROR(INDEX(النشاط,SMALL(IF(الهدف=$B$2,ROW(النشاط)-MIN(ROW(النشاط))+1),ROWS($B$3:B31)))&\" \"&CHAR(10)&(INDEX(النتيجة,SMALL(IF(الهدف=$B$2,ROW(النتيجة)-MIN(ROW(النتيجة))+1),ROWS($B$3:B31))))&CHAR(10),\"\")","v":""},null,{"$f":"IFERROR(INDEX(النشاط,SMALL(IF(الهدف=$D$2,ROW(النشاط)-MIN(ROW(النشاط))+1),ROWS($B$3:B31)))&CHAR(10),\"\")","v":""},null,{"$f":"IFERROR(INDEX(النشاط,SMALL(IF(الهدف=$F$2,ROW(النشاط)-MIN(ROW(النشاط))+1),ROWS($B$3:B31)))&CHAR(10),\"\")","v":""},null,{"$f":"IFERROR(INDEX(النشاط,SMALL(IF(الهدف=$H$2,ROW(النشاط)-MIN(ROW(النشاط))+1),ROWS($B$3:B31)))&CHAR(10),\"\")","v":""}]
[null,{"$f":"IFERROR(INDEX(النشاط,SMALL(IF(الهدف=$B$2,ROW(النشاط)-MIN(ROW(النشاط))+1),ROWS($B$3:B32)))&\" \"&CHAR(10)&(INDEX(النتيجة,SMALL(IF(الهدف=$B$2,ROW(النتيجة)-MIN(ROW(النتيجة))+1),ROWS($B$3:B32))))&CHAR(10),\"\")","v":""},null,{"$f":"IFERROR(INDEX(النشاط,SMALL(IF(الهدف=$D$2,ROW(النشاط)-MIN(ROW(النشاط))+1),ROWS($B$3:B32)))&CHAR(10),\"\")","v":""},null,{"$f":"IFERROR(INDEX(النشاط,SMALL(IF(الهدف=$F$2,ROW(النشاط)-MIN(ROW(النشاط))+1),ROWS($B$3:B32)))&CHAR(10),\"\")","v":""},null,{"$f":"IFERROR(INDEX(النشاط,SMALL(IF(الهدف=$H$2,ROW(النشاط)-MIN(ROW(النشاط))+1),ROWS($B$3:B32)))&CHAR(10),\"\")","v":""}]
[null,{"$f":"IFERROR(INDEX(النشاط,SMALL(IF(الهدف=$B$2,ROW(النشاط)-MIN(ROW(النشاط))+1),ROWS($B$3:B33)))&\" \"&CHAR(10)&(INDEX(النتيجة,SMALL(IF(الهدف=$B$2,ROW(النتيجة)-MIN(ROW(النتيجة))+1),ROWS($B$3:B33))))&CHAR(10),\"\")","v":""},null,{"$f":"IFERROR(INDEX(النشاط,SMALL(IF(الهدف=$D$2,ROW(النشاط)-MIN(ROW(النشاط))+1),ROWS($B$3:B33)))&CHAR(10),\"\")","v":""},null,{"$f":"IFERROR(INDEX(النشاط,SMALL(IF(الهدف=$F$2,ROW(النشاط)-MIN(ROW(النشاط))+1),ROWS($B$3:B33)))&CHAR(10),\"\")","v":""},null,{"$f":"IFERROR(INDEX(النشاط,SMALL(IF(الهدف=$H$2,ROW(النشاط)-MIN(ROW(النشاط))+1),ROWS($B$3:B33)))&CHAR(10),\"\")","v":""}]
[null,{"$f":"IFERROR(INDEX(النشاط,SMALL(IF(الهدف=$B$2,ROW(النشاط)-MIN(ROW(النشاط))+1),ROWS($B$3:B34)))&\" \"&CHAR(10)&(INDEX(النتيجة,SMALL(IF(الهدف=$B$2,ROW(النتيجة)-MIN(ROW(النتيجة))+1),ROWS($B$3:B34))))&CHAR(10),\"\")","v":""},null,{"$f":"IFERROR(INDEX(النشاط,SMALL(IF(الهدف=$D$2,ROW(النشاط)-MIN(ROW(النشاط))+1),ROWS($B$3:B34)))&CHAR(10),\"\")","v":""},null,{"$f":"IFERROR(INDEX(النشاط,SMALL(IF(الهدف=$F$2,ROW(النشاط)-MIN(ROW(النشاط))+1),ROWS($B$3:B34)))&CHAR(10),\"\")","v":""},null,{"$f":"IFERROR(INDEX(النشاط,SMALL(IF(الهدف=$H$2,ROW(النشاط)-MIN(ROW(النشاط))+1),ROWS($B$3:B34)))&CHAR(10),\"\")","v":""}]
[null,{"$f":"IFERROR(INDEX(النشاط,SMALL(IF(الهدف=$B$2,ROW(النشاط)-MIN(ROW(النشاط))+1),ROWS($B$3:B35)))&\" \"&CHAR(10)&(INDEX(النتيجة,SMALL(IF(الهدف=$B$2,ROW(النتيجة)-MIN(ROW(النتيجة))+1),ROWS($B$3:B35))))&CHAR(10),\"\")","v":""},null,{"$f":"IFERROR(INDEX(النشاط,SMALL(IF(الهدف=$D$2,ROW(النشاط)-MIN(ROW(النشاط))+1),ROWS($B$3:B35)))&CHAR(10),\"\")","v":""},null,{"$f":"IFERROR(INDEX(النشاط,SMALL(IF(الهدف=$F$2,ROW(النشاط)-MIN(ROW(النشاط))+1),ROWS($B$3:B35)))&CHAR(10),\"\")","v":""},null,{"$f":"IFERROR(INDEX(النشاط,SMALL(IF(الهدف=$H$2,ROW(النشاط)-MIN(ROW(النشاط))+1),ROWS($B$3:B35)))&CHAR(10),\"\")","v":""}]
[null,{"$f":"IFERROR(INDEX(النشاط,SMALL(IF(الهدف=$B$2,ROW(النشاط)-MIN(ROW(النشاط))+1),ROWS($B$3:B36)))&\" \"&CHAR(10)&(INDEX(النتيجة,SMALL(IF(الهدف=$B$2,ROW(النتيجة)-MIN(ROW(النتيجة))+1),ROWS($B$3:B36))))&CHAR(10),\"\")","v":""},null,{"$f":"IFERROR(INDEX(النشاط,SMALL(IF(الهدف=$D$2,ROW(النشاط)-MIN(ROW(النشاط))+1),ROWS($B$3:B36)))&CHAR(10),\"\")","v":""},null,{"$f":"IFERROR(INDEX(النشاط,SMALL(IF(الهدف=$F$2,ROW(النشاط)-MIN(ROW(النشاط))+1),ROWS($B$3:B36)))&CHAR(10),\"\")","v":""},null,{"$f":"IFERROR(INDEX(النشاط,SMALL(IF(الهدف=$H$2,ROW(النشاط)-MIN(ROW(النشاط))+1),ROWS($B$3:B36)))&CHAR(10),\"\")","v":""}]
[null,{"$f":"IFERROR(INDEX(النشاط,SMALL(IF(الهدف=$B$2,ROW(النشاط)-MIN(ROW(النشاط))+1),ROWS($B$3:B37)))&\" \"&CHAR(10)&(INDEX(النتيجة,SMALL(IF(الهدف=$B$2,ROW(النتيجة)-MIN(ROW(النتيجة))+1),ROWS($B$3:B37))))&CHAR(10),\"\")","v":""},null,{"$f":"IFERROR(INDEX(النشاط,SMALL(IF(الهدف=$D$2,ROW(النشاط)-MIN(ROW(النشاط))+1),ROWS($B$3:B37)))&CHAR(10),\"\")","v":""},null,{"$f":"IFERROR(INDEX(النشاط,SMALL(IF(الهدف=$F$2,ROW(النشاط)-MIN(ROW(النشاط))+1),ROWS($B$3:B37)))&CHAR(10),\"\")","v":""},null,{"$f":"IFERROR(INDEX(النشاط,SMALL(IF(الهدف=$H$2,ROW(النشاط)-MIN(ROW(النشاط))+1),ROWS($B$3:B37)))&CHAR(10),\"\")","v":""}]
[null,{"$f":"IFERROR(INDEX(النشاط,SMALL(IF(الهدف=$B$2,ROW(النشاط)-MIN(ROW(النشاط))+1),ROWS($B$3:B38)))&\" \"&CHAR(10)&(INDEX(النتيجة,SMALL(IF(الهدف=$B$2,ROW(النتيجة)-MIN(ROW(النتيجة))+1),ROWS($B$3:B38))))&CHAR(10),\"\")","v":""},null,{"$f":"IFERROR(INDEX(النشاط,SMALL(IF(الهدف=$D$2,ROW(النشاط)-MIN(ROW(النشاط))+1),ROWS($B$3:B38)))&CHAR(10),\"\")","v":""},null,{"$f":"IFERROR(INDEX(النشاط,SMALL(IF(الهدف=$F$2,ROW(النشاط)-MIN(ROW(النشاط))+1),ROWS($B$3:B38)))&CHAR(10),\"\")","v":""},null,{"$f":"IFERROR(INDEX(النشاط,SMALL(IF(الهدف=$H$2,ROW(النشاط)-MIN(ROW(النشاط))+1),ROWS($B$3:B38)))&CHAR(10),\"\")","v":""}]
[null,{"$f":"IFERROR(INDEX(النشاط,SMALL(IF(الهدف=$B$2,ROW(النشاط)-MIN(ROW(النشاط))+1),ROWS($B$3:B39)))&\" \"&CHAR(10)&(INDEX(النتيجة,SMALL(IF(الهدف=$B$2,ROW(النتيجة)-MIN(ROW(النتيجة))+1),ROWS($B$3:B39))))&CHAR(10),\"\")","v":""},null,{"$f":"IFERROR(INDEX(النشاط,SMALL(IF(الهدف=$D$2,ROW(النشاط)-MIN(ROW(النشاط))+1),ROWS($B$3:B39)))&CHAR(10),\"\")","v":""},null,{"$f":"IFERROR(INDEX(النشاط,SMALL(IF(الهدف=$F$2,ROW(النشاط)-MIN(ROW(النشاط))+1),ROWS($B$3:B39)))&CHAR(10),\"\")","v":""},null,{"$f":"IFERROR(INDEX(النشاط,SMALL(IF(الهدف=$H$2,ROW(النشاط)-MIN(ROW(النشاط))+1),ROWS($B$3:B39)))&CHAR(10),\"\")","v":""}]
[null,{"$f":"IFERROR(INDEX(النشاط,SMALL(IF(الهدف=$B$2,ROW(النشاط)-MIN(ROW(النشاط))+1),ROWS($B$3:B40)))&\" \"&CHAR(10)&(INDEX(النتيجة,SMALL(IF(الهدف=$B$2,ROW(النتيجة)-MIN(ROW(النتيجة))+1),ROWS($B$3:B40))))&CHAR(10),\"\")","v":""},null,{"$f":"IFERROR(INDEX(النشاط,SMALL(IF(الهدف=$D$2,ROW(النشاط)-MIN(ROW(النشاط))+1),ROWS($B$3:B40)))&CHAR(10),\"\")","v":""},null,{"$f":"IFERROR(INDEX(النشاط,SMALL(IF(الهدف=$F$2,ROW(النشاط)-MIN(ROW(النشاط))+1),ROWS($B$3:B40)))&CHAR(10),\"\")","v":""},null,{"$f":"IFERROR(INDEX(النشاط,SMALL(IF(الهدف=$H$2,ROW(النشاط)-MIN(ROW(النشاط))+1),ROWS($B$3:B40)))&CHAR(10),\"\")","v":""}]
[null,{"$f":"IFERROR(INDEX(النشاط,SMALL(IF(الهدف=$B$2,ROW(النشاط)-MIN(ROW(النشاط))+1),ROWS($B$3:B41)))&\" \"&CHAR(10)&(INDEX(النتيجة,SMALL(IF(الهدف=$B$2,ROW(النتيجة)-MIN(ROW(النتيجة))+1),ROWS($B$3:B41))))&CHAR(10),\"\")","v":""},null,{"$f":"IFERROR(INDEX(النشاط,SMALL(IF(الهدف=$D$2,ROW(النشاط)-MIN(ROW(النشاط))+1),ROWS($B$3:B41)))&CHAR(10),\"\")","v":""},null,{"$f":"IFERROR(INDEX(النشاط,SMALL(IF(الهدف=$F$2,ROW(النشاط)-MIN(ROW(النشاط))+1),ROWS($B$3:B41)))&CHAR(10),\"\")","v":""},null,{"$f":"IFERROR(INDEX(النشاط,SMALL(IF(الهدف=$H$2,ROW(النشاط)-MIN(ROW(النشاط))+1),ROWS($B$3:B41)))&CHAR(10),\"\")","v":""}]
[null,{"$f":"IFERROR(INDEX(النشاط,SMALL(IF(الهدف=$B$2,ROW(النشاط)-MIN(ROW(النشاط))+1),ROWS($B$3:B42)))&\" \"&CHAR(10)&(INDEX(النتيجة,SMALL(IF(الهدف=$B$2,ROW(النتيجة)-MIN(ROW(النتيجة))+1),ROWS($B$3:B42))))&CHAR(10),\"\")","v":""},null,{"$f":"IFERROR(INDEX(النشاط,SMALL(IF(الهدف=$D$2,ROW(النشاط)-MIN(ROW(النشاط))+1),ROWS($B$3:B42)))&CHAR(10),\"\")","v":""},null,{"$f":"IFERROR(INDEX(النشاط,SMALL(IF(الهدف=$F$2,ROW(النشاط)-MIN(ROW(النشاط))+1),ROWS($B$3:B42)))&CHAR(10),\"\")","v":""},null,{"$f":"IFERROR(INDEX(النشاط,SMALL(IF(الهدف=$H$2,ROW(النشاط)-MIN(ROW(النشاط))+1),ROWS($B$3:B42)))&CHAR(10),\"\")","v":""}]
[null,{"$f":"IFERROR(INDEX(النشاط,SMALL(IF(الهدف=$B$2,ROW(النشاط)-MIN(ROW(النشاط))+1),ROWS($B$3:B43)))&\" \"&CHAR(10)&(INDEX(النتيجة,SMALL(IF(الهدف=$B$2,ROW(النتيجة)-MIN(ROW(النتيجة))+1),ROWS($B$3:B43))))&CHAR(10),\"\")","v":""},null,{"$f":"IFERROR(INDEX(النشاط,SMALL(IF(الهدف=$D$2,ROW(النشاط)-MIN(ROW(النشاط))+1),ROWS($B$3:B43)))&CHAR(10),\"\")","v":""},null,{"$f":"IFERROR(INDEX(النشاط,SMALL(IF(الهدف=$F$2,ROW(النشاط)-MIN(ROW(النشاط))+1),ROWS($B$3:B43)))&CHAR(10),\"\")","v":""},null,{"$f":"IFERROR(INDEX(النشاط,SMALL(IF(الهدف=$H$2,ROW(النشاط)-MIN(ROW(النشاط))+1),ROWS($B$3:B43)))&CHAR(10),\"\")","v":""}]
[null,{"$f":"IFERROR(INDEX(النشاط,SMALL(IF(الهدف=$B$2,ROW(النشاط)-MIN(ROW(النشاط))+1),ROWS($B$3:B44)))&\" \"&CHAR(10)&(INDEX(النتيجة,SMALL(IF(الهدف=$B$2,ROW(النتيجة)-MIN(ROW(النتيجة))+1),ROWS($B$3:B44))))&CHAR(10),\"\")","v":""},null,{"$f":"IFERROR(INDEX(النشاط,SMALL(IF(الهدف=$D$2,ROW(النشاط)-MIN(ROW(النشاط))+1),ROWS($B$3:B44)))&CHAR(10),\"\")","v":""},null,{"$f":"IFERROR(INDEX(النشاط,SMALL(IF(الهدف=$F$2,ROW(النشاط)-MIN(ROW(النشاط))+1),ROWS($B$3:B44)))&CHAR(10),\"\")","v":""},null,{"$f":"IFERROR(INDEX(النشاط,SMALL(IF(الهدف=$H$2,ROW(النشاط)-MIN(ROW(النشاط))+1),ROWS($B$3:B44)))&CHAR(10),\"\")","v":""}]
[null,{"$f":"IFERROR(INDEX(النشاط,SMALL(IF(الهدف=$B$2,ROW(النشاط)-MIN(ROW(النشاط))+1),ROWS($B$3:B45)))&\" \"&CHAR(10)&(INDEX(النتيجة,SMALL(IF(الهدف=$B$2,ROW(النتيجة)-MIN(ROW(النتيجة))+1),ROWS($B$3:B45))))&CHAR(10),\"\")","v":""},null,{"$f":"IFERROR(INDEX(النشاط,SMALL(IF(الهدف=$D$2,ROW(النشاط)-MIN(ROW(النشاط))+1),ROWS($B$3:B45)))&CHAR(10),\"\")","v":""},null,{"$f":"IFERROR(INDEX(النشاط,SMALL(IF(الهدف=$F$2,ROW(النشاط)-MIN(ROW(النشاط))+1),ROWS($B$3:B45)))&CHAR(10),\"\")","v":""},null,{"$f":"IFERROR(INDEX(النشاط,SMALL(IF(الهدف=$H$2,ROW(النشاط)-MIN(ROW(النشاط))+1),ROWS($B$3:B45)))&CHAR(10),\"\")","v":""}]
[null,{"$f":"IFERROR(INDEX(النشاط,SMALL(IF(الهدف=$B$2,ROW(النشاط)-MIN(ROW(النشاط))+1),ROWS($B$3:B46)))&\" \"&CHAR(10)&(INDEX(النتيجة,SMALL(IF(الهدف=$B$2,ROW(النتيجة)-MIN(ROW(النتيجة))+1),ROWS($B$3:B46))))&CHAR(10),\"\")","v":""},null,{"$f":"IFERROR(INDEX(النشاط,SMALL(IF(الهدف=$D$2,ROW(النشاط)-MIN(ROW(النشاط))+1),ROWS($B$3:B46)))&CHAR(10),\"\")","v":""},null,{"$f":"IFERROR(INDEX(النشاط,SMALL(IF(الهدف=$F$2,ROW(النشاط)-MIN(ROW(النشاط))+1),ROWS($B$3:B46)))&CHAR(10),\"\")","v":""},null,{"$f":"IFERROR(INDEX(النشاط,SMALL(IF(الهدف=$H$2,ROW(النشاط)-MIN(ROW(النشاط))+1),ROWS($B$3:B46)))&CHAR(10),\"\")","v":""}]
[null,{"$f":"IFERROR(INDEX(النشاط,SMALL(IF(الهدف=$B$2,ROW(النشاط)-MIN(ROW(النشاط))+1),ROWS($B$3:B47)))&\" \"&CHAR(10)&(INDEX(النتيجة,SMALL(IF(الهدف=$B$2,ROW(النتيجة)-MIN(ROW(النتيجة))+1),ROWS($B$3:B47))))&CHAR(10),\"\")","v":""},null,{"$f":"IFERROR(INDEX(النشاط,SMALL(IF(الهدف=$D$2,ROW(النشاط)-MIN(ROW(النشاط))+1),ROWS($B$3:B47)))&CHAR(10),\"\")","v":""},null,{"$f":"IFERROR(INDEX(النشاط,SMALL(IF(الهدف=$F$2,ROW(النشاط)-MIN(ROW(النشاط))+1),ROWS($B$3:B47)))&CHAR(10),\"\")","v":""},null,{"$f":"IFERROR(INDEX(النشاط,SMALL(IF(الهدف=$H$2,ROW(النشاط)-MIN(ROW(النشاط))+1),ROWS($B$3:B47)))&CHAR(10),\"\")","v":""}]
[null,{"$f":"IFERROR(INDEX(النشاط,SMALL(IF(الهدف=$B$2,ROW(النشاط)-MIN(ROW(النشاط))+1),ROWS($B$3:B48)))&\" \"&CHAR(10)&(INDEX(النتيجة,SMALL(IF(الهدف=$B$2,ROW(النتيجة)-MIN(ROW(النتيجة))+1),ROWS($B$3:B48))))&CHAR(10),\"\")","v":""},null,{"$f":"IFERROR(INDEX(النشاط,SMALL(IF(الهدف=$D$2,ROW(النشاط)-MIN(ROW(النشاط))+1),ROWS($B$3:B48)))&CHAR(10),\"\")","v":""},null,{"$f":"IFERROR(INDEX(النشاط,SMALL(IF(الهدف=$F$2,ROW(النشاط)-MIN(ROW(النشاط))+1),ROWS($B$3:B48)))&CHAR(10),\"\")","v":""},null,{"$f":"IFERROR(INDEX(النشاط,SMALL(IF(الهدف=$H$2,ROW(النشاط)-MIN(ROW(النشاط))+1),ROWS($B$3:B48)))&CHAR(10),\"\")","v":""}]
[null,{"$f":"IFERROR(INDEX(النشاط,SMALL(IF(الهدف=$B$2,ROW(النشاط)-MIN(ROW(النشاط))+1),ROWS($B$3:B49)))&\" \"&CHAR(10)&(INDEX(النتيجة,SMALL(IF(الهدف=$B$2,ROW(النتيجة)-MIN(ROW(النتيجة))+1),ROWS($B$3:B49))))&CHAR(10),\"\")","v":""},null,{"$f":"IFERROR(INDEX(النشاط,SMALL(IF(الهدف=$D$2,ROW(النشاط)-MIN(ROW(النشاط))+1),ROWS($B$3:B49)))&CHAR(10),\"\")","v":""},null,{"$f":"IFERROR(INDEX(النشاط,SMALL(IF(الهدف=$F$2,ROW(النشاط)-MIN(ROW(النشاط))+1),ROWS($B$3:B49)))&CHAR(10),\"\")","v":""},null,{"$f":"IFERROR(INDEX(النشاط,SMALL(IF(الهدف=$H$2,ROW(النشاط)-MIN(ROW(النشاط))+1),ROWS($B$3:B49)))&CHAR(10),\"\")","v":""}]
[null,{"$f":"IFERROR(INDEX(النشاط,SMALL(IF(الهدف=$B$2,ROW(النشاط)-MIN(ROW(النشاط))+1),ROWS($B$3:B50)))&\" \"&CHAR(10)&(INDEX(النتيجة,SMALL(IF(الهدف=$B$2,ROW(النتيجة)-MIN(ROW(النتيجة))+1),ROWS($B$3:B50))))&CHAR(10),\"\")","v":""},null,{"$f":"IFERROR(INDEX(النشاط,SMALL(IF(الهدف=$D$2,ROW(النشاط)-MIN(ROW(النشاط))+1),ROWS($B$3:B50)))&CHAR(10),\"\")","v":""},null,{"$f":"IFERROR(INDEX(النشاط,SMALL(IF(الهدف=$F$2,ROW(النشاط)-MIN(ROW(النشاط))+1),ROWS($B$3:B50)))&CHAR(10),\"\")","v":""},null,{"$f":"IFERROR(INDEX(النشاط,SMALL(IF(الهدف=$H$2,ROW(النشاط)-MIN(ROW(النشاط))+1),ROWS($B$3:B50)))&CHAR(10),\"\")","v":""}]
[null,{"$f":"IFERROR(INDEX(النشاط,SMALL(IF(الهدف=$B$2,ROW(النشاط)-MIN(ROW(النشاط))+1),ROWS($B$3:B51)))&\" \"&CHAR(10)&(INDEX(النتيجة,SMALL(IF(الهدف=$B$2,ROW(النتيجة)-MIN(ROW(النتيجة))+1),ROWS($B$3:B51))))&CHAR(10),\"\")","v":""},null,{"$f":"IFERROR(INDEX(النشاط,SMALL(IF(الهدف=$D$2,ROW(النشاط)-MIN(ROW(النشاط))+1),ROWS($B$3:B51)))&CHAR(10),\"\")","v":""},null,{"$f":"IFERROR(INDEX(النشاط,SMALL(IF(الهدف=$F$2,ROW(النشاط)-MIN(ROW(النشاط))+1),ROWS($B$3:B51)))&CHAR(10),\"\")","v":""},null,{"$f":"IFERROR(INDEX(النشاط,SMALL(IF(الهدف=$H$2,ROW(النشاط)-MIN(ROW(النشاط))+1),ROWS($B$3:B51)))&CHAR(10),\"\")","v":""}]
[null,{"$f":"IFERROR(INDEX(النشاط,SMALL(IF(الهدف=$B$2,ROW(النشاط)-MIN(ROW(النشاط))+1),ROWS($B$3:B52)))&\" \"&CHAR(10)&(INDEX(النتيجة,SMALL(IF(الهدف=$B$2,ROW(النتيجة)-MIN(ROW(النتيجة))+1),ROWS($B$3:B52))))&CHAR(10),\"\")","v":""},null,{"$f":"IFERROR(INDEX(النشاط,SMALL(IF(الهدف=$D$2,ROW(النشاط)-MIN(ROW(النشاط))+1),ROWS($B$3:B52)))&CHAR(10),\"\")","v":""},null,{"$f":"IFERROR(INDEX(النشاط,SMALL(IF(الهدف=$F$2,ROW(النشاط)-MIN(ROW(النشاط))+1),ROWS($B$3:B52)))&CHAR(10),\"\")","v":""},null,{"$f":"IFERROR(INDEX(النشاط,SMALL(IF(الهدف=$H$2,ROW(النشاط)-MIN(ROW(النشاط))+1),ROWS($B$3:B52)))&CHAR(10),\"\")","v":""}]
[null,{"$f":"IFERROR(INDEX(النشاط,SMALL(IF(الهدف=$B$2,ROW(النشاط)-MIN(ROW(النشاط))+1),ROWS($B$3:B53)))&\" \"&CHAR(10)&(INDEX(النتيجة,SMALL(IF(الهدف=$B$2,ROW(النتيجة)-MIN(ROW(النتيجة))+1),ROWS($B$3:B53))))&CHAR(10),\"\")","v":""},null,{"$f":"IFERROR(INDEX(النشاط,SMALL(IF(الهدف=$D$2,ROW(النشاط)-MIN(ROW(النشاط))+1),ROWS($B$3:B53)))&CHAR(10),\"\")","v":""},null,{"$f":"IFERROR(INDEX(النشاط,SMALL(IF(الهدف=$F$2,ROW(النشاط)-MIN(ROW(النشاط))+1),ROWS($B$3:B53)))&CHAR(10),\"\")","v":""},null,{"$f":"IFERROR(INDEX(النشاط,SMALL(IF(الهدف=$H$2,ROW(النشاط)-MIN(ROW(النشاط))+1),ROWS($B$3:B53)))&CHAR(10),\"\")","v":""}]
[null,{"$f":"IFERROR(INDEX(النشاط,SMALL(IF(الهدف=$B$2,ROW(النشاط)-MIN(ROW(النشاط))+1),ROWS($B$3:B54)))&\" \"&CHAR(10)&(INDEX(النتيجة,SMALL(IF(الهدف=$B$2,ROW(النتيجة)-MIN(ROW(النتيجة))+1),ROWS($B$3:B54))))&CHAR(10),\"\")","v":""},null,{"$f":"IFERROR(INDEX(النشاط,SMALL(IF(الهدف=$D$2,ROW(النشاط)-MIN(ROW(النشاط))+1),ROWS($B$3:B54)))&CHAR(10),\"\")","v":""},null,{"$f":"IFERROR(INDEX(النشاط,SMALL(IF(الهدف=$F$2,ROW(النشاط)-MIN(ROW(النشاط))+1),ROWS($B$3:B54)))&CHAR(10),\"\")","v":""},null,{"$f":"IFERROR(INDEX(النشاط,SMALL(IF(الهدف=$H$2,ROW(النشاط)-MIN(ROW(النشاط))+1),ROWS($B$3:B54)))&CHAR(10),\"\")","v":""}]
[null,{"$f":"IFERROR(INDEX(النشاط,SMALL(IF(الهدف=$B$2,ROW(النشاط)-MIN(ROW(النشاط))+1),ROWS($B$3:B55)))&\" \"&CHAR(10)&(INDEX(النتيجة,SMALL(IF(الهدف=$B$2,ROW(النتيجة)-MIN(ROW(النتيجة))+1),ROWS($B$3:B55))))&CHAR(10),\"\")","v":""},null,{"$f":"IFERROR(INDEX(النشاط,SMALL(IF(الهدف=$D$2,ROW(النشاط)-MIN(ROW(النشاط))+1),ROWS($B$3:B55)))&CHAR(10),\"\")","v":""},null,{"$f":"IFERROR(INDEX(النشاط,SMALL(IF(الهدف=$F$2,ROW(النشاط)-MIN(ROW(النشاط))+1),ROWS($B$3:B55)))&CHAR(10),\"\")","v":""},null,{"$f":"IFERROR(INDEX(النشاط,SMALL(IF(الهدف=$H$2,ROW(النشاط)-MIN(ROW(النشاط))+1),ROWS($B$3:B55)))&CHAR(10),\"\")","v":""}]
[null,{"$f":"IFERROR(INDEX(النشاط,SMALL(IF(الهدف=$B$2,ROW(النشاط)-MIN(ROW(النشاط))+1),ROWS($B$3:B56)))&\" \"&CHAR(10)&(INDEX(النتيجة,SMALL(IF(الهدف=$B$2,ROW(النتيجة)-MIN(ROW(النتيجة))+1),ROWS($B$3:B56))))&CHAR(10),\"\")","v":""},null,{"$f":"IFERROR(INDEX(النشاط,SMALL(IF(الهدف=$D$2,ROW(النشاط)-MIN(ROW(النشاط))+1),ROWS($B$3:B56)))&CHAR(10),\"\")","v":""},null,{"$f":"IFERROR(INDEX(النشاط,SMALL(IF(الهدف=$F$2,ROW(النشاط)-MIN(ROW(النشاط))+1),ROWS($B$3:B56)))&CHAR(10),\"\")","v":""},null,{"$f":"IFERROR(INDEX(النشاط,SMALL(IF(الهدف=$H$2,ROW(النشاط)-MIN(ROW(النشاط))+1),ROWS($B$3:B56)))&CHAR(10),\"\")","v":""}]
[null,{"$f":"IFERROR(INDEX(النشاط,SMALL(IF(الهدف=$B$2,ROW(النشاط)-MIN(ROW(النشاط))+1),ROWS($B$3:B57)))&\" \"&CHAR(10)&(INDEX(النتيجة,SMALL(IF(الهدف=$B$2,ROW(النتيجة)-MIN(ROW(النتيجة))+1),ROWS($B$3:B57))))&CHAR(10),\"\")","v":""},null,{"$f":"IFERROR(INDEX(النشاط,SMALL(IF(الهدف=$D$2,ROW(النشاط)-MIN(ROW(النشاط))+1),ROWS($B$3:B57)))&CHAR(10),\"\")","v":""},null,{"$f":"IFERROR(INDEX(النشاط,SMALL(IF(الهدف=$F$2,ROW(النشاط)-MIN(ROW(النشاط))+1),ROWS($B$3:B57)))&CHAR(10),\"\")","v":""},null,{"$f":"IFERROR(INDEX(النشاط,SMALL(IF(الهدف=$H$2,ROW(النشاط)-MIN(ROW(النشاط))+1),ROWS($B$3:B57)))&CHAR(10),\"\")","v":""}]
[null,{"$f":"IFERROR(INDEX(النشاط,SMALL(IF(الهدف=$B$2,ROW(النشاط)-MIN(ROW(النشاط))+1),ROWS($B$3:B58)))&\" \"&CHAR(10)&(INDEX(النتيجة,SMALL(IF(الهدف=$B$2,ROW(النتيجة)-MIN(ROW(النتيجة))+1),ROWS($B$3:B58))))&CHAR(10),\"\")","v":""},null,{"$f":"IFERROR(INDEX(النشاط,SMALL(IF(الهدف=$D$2,ROW(النشاط)-MIN(ROW(النشاط))+1),ROWS($B$3:B58)))&CHAR(10),\"\")","v":""},null,{"$f":"IFERROR(INDEX(النشاط,SMALL(IF(الهدف=$F$2,ROW(النشاط)-MIN(ROW(النشاط))+1),ROWS($B$3:B58)))&CHAR(10),\"\")","v":""},null,{"$f":"IFERROR(INDEX(النشاط,SMALL(IF(الهدف=$H$2,ROW(النشاط)-MIN(ROW(النشاط))+1),ROWS($B$3:B58)))&CHAR(10),\"\")","v":""}]
[null,{"$f":"IFERROR(INDEX(النشاط,SMALL(IF(الهدف=$B$2,ROW(النشاط)-MIN(ROW(النشاط))+1),ROWS($B$3:B59)))&\" \"&CHAR(10)&(INDEX(النتيجة,SMALL(IF(الهدف=$B$2,ROW(النتيجة)-MIN(ROW(النتيجة))+1),ROWS($B$3:B59))))&CHAR(10),\"\")","v":""},null,{"$f":"IFERROR(INDEX(النشاط,SMALL(IF(الهدف=$D$2,ROW(النشاط)-MIN(ROW(النشاط))+1),ROWS($B$3:B59)))&CHAR(10),\"\")","v":""},null,{"$f":"IFERROR(INDEX(النشاط,SMALL(IF(الهدف=$F$2,ROW(النشاط)-MIN(ROW(النشاط))+1),ROWS($B$3:B59)))&CHAR(10),\"\")","v":""},null,{"$f":"IFERROR(INDEX(النشاط,SMALL(IF(الهدف=$H$2,ROW(النشاط)-MIN(ROW(النشاط))+1),ROWS($B$3:B59)))&CHAR(10),\"\")","v":""}]
[null,{"$f":"IFERROR(INDEX(النشاط,SMALL(IF(الهدف=$B$2,ROW(النشاط)-MIN(ROW(النشاط))+1),ROWS($B$3:B60)))&\" \"&CHAR(10)&(INDEX(النتيجة,SMALL(IF(الهدف=$B$2,ROW(النتيجة)-MIN(ROW(النتيجة))+1),ROWS($B$3:B60))))&CHAR(10),\"\")","v":""},null,{"$f":"IFERROR(INDEX(النشاط,SMALL(IF(الهدف=$D$2,ROW(النشاط)-MIN(ROW(النشاط))+1),ROWS($B$3:B60)))&CHAR(10),\"\")","v":""},null,{"$f":"IFERROR(INDEX(النشاط,SMALL(IF(الهدف=$F$2,ROW(النشاط)-MIN(ROW(النشاط))+1),ROWS($B$3:B60)))&CHAR(10),\"\")","v":""},null,{"$f":"IFERROR(INDEX(النشاط,SMALL(IF(الهدف=$H$2,ROW(النشاط)-MIN(ROW(النشاط))+1),ROWS($B$3:B60)))&CHAR(10),\"\")","v":""}]
[null,{"$f":"IFERROR(INDEX(النشاط,SMALL(IF(الهدف=$B$2,ROW(النشاط)-MIN(ROW(النشاط))+1),ROWS($B$3:B61)))&\" \"&CHAR(10)&(INDEX(النتيجة,SMALL(IF(الهدف=$B$2,ROW(النتيجة)-MIN(ROW(النتيجة))+1),ROWS($B$3:B61))))&CHAR(10),\"\")","v":""},null,{"$f":"IFERROR(INDEX(النشاط,SMALL(IF(الهدف=$D$2,ROW(النشاط)-MIN(ROW(النشاط))+1),ROWS($B$3:B61)))&CHAR(10),\"\")","v":""},null,{"$f":"IFERROR(INDEX(النشاط,SMALL(IF(الهدف=$F$2,ROW(النشاط)-MIN(ROW(النشاط))+1),ROWS($B$3:B61)))&CHAR(10),\"\")","v":""},null,{"$f":"IFERROR(INDEX(النشاط,SMALL(IF(الهدف=$H$2,ROW(النشاط)-MIN(ROW(النشاط))+1),ROWS($B$3:B61)))&CHAR(10),\"\")","v":""}]
[null,{"$f":"IFERROR(INDEX(النشاط,SMALL(IF(الهدف=$B$2,ROW(النشاط)-MIN(ROW(النشاط))+1),ROWS($B$3:B62)))&\" \"&CHAR(10)&(INDEX(النتيجة,SMALL(IF(الهدف=$B$2,ROW(النتيجة)-MIN(ROW(النتيجة))+1),ROWS($B$3:B62))))&CHAR(10),\"\")","v":""},null,{"$f":"IFERROR(INDEX(النشاط,SMALL(IF(الهدف=$D$2,ROW(النشاط)-MIN(ROW(النشاط))+1),ROWS($B$3:B62)))&CHAR(10),\"\")","v":""},null,{"$f":"IFERROR(INDEX(النشاط,SMALL(IF(الهدف=$F$2,ROW(النشاط)-MIN(ROW(النشاط))+1),ROWS($B$3:B62)))&CHAR(10),\"\")","v":""},null,{"$f":"IFERROR(INDEX(النشاط,SMALL(IF(الهدف=$H$2,ROW(النشاط)-MIN(ROW(النشاط))+1),ROWS($B$3:B62)))&CHAR(10),\"\")","v":""}]
[null,{"$f":"IFERROR(INDEX(النشاط,SMALL(IF(الهدف=$B$2,ROW(النشاط)-MIN(ROW(النشاط))+1),ROWS($B$3:B63)))&\" \"&CHAR(10)&(INDEX(النتيجة,SMALL(IF(الهدف=$B$2,ROW(النتيجة)-MIN(ROW(النتيجة))+1),ROWS($B$3:B63))))&CHAR(10),\"\")","v":""},null,{"$f":"IFERROR(INDEX(النشاط,SMALL(IF(الهدف=$D$2,ROW(النشاط)-MIN(ROW(النشاط))+1),ROWS($B$3:B63)))&CHAR(10),\"\")","v":""},null,{"$f":"IFERROR(INDEX(النشاط,SMALL(IF(الهدف=$F$2,ROW(النشاط)-MIN(ROW(النشاط))+1),ROWS($B$3:B63)))&CHAR(10),\"\")","v":""},null,{"$f":"IFERROR(INDEX(النشاط,SMALL(IF(الهدف=$H$2,ROW(النشاط)-MIN(ROW(النشاط))+1),ROWS($B$3:B63)))&CHAR(10),\"\")","v":""}]
[null,{"$f":"IFERROR(INDEX(النشاط,SMALL(IF(الهدف=$B$2,ROW(النشاط)-MIN(ROW(النشاط))+1),ROWS($B$3:B64)))&\" \"&CHAR(10)&(INDEX(النتيجة,SMALL(IF(الهدف=$B$2,ROW(النتيجة)-MIN(ROW(النتيجة))+1),ROWS($B$3:B64))))&CHAR(10),\"\")","v":""},null,{"$f":"IFERROR(INDEX(النشاط,SMALL(IF(الهدف=$D$2,ROW(النشاط)-MIN(ROW(النشاط))+1),ROWS($B$3:B64)))&CHAR(10),\"\")","v":""},null,{"$f":"IFERROR(INDEX(النشاط,SMALL(IF(الهدف=$F$2,ROW(النشاط)-MIN(ROW(النشاط))+1),ROWS($B$3:B64)))&CHAR(10),\"\")","v":""},null,{"$f":"IFERROR(INDEX(النشاط,SMALL(IF(الهدف=$H$2,ROW(النشاط)-MIN(ROW(النشاط))+1),ROWS($B$3:B64)))&CHAR(10),\"\")","v":""}]
[null,{"$f":"IFERROR(INDEX(النشاط,SMALL(IF(الهدف=$B$2,ROW(النشاط)-MIN(ROW(النشاط))+1),ROWS($B$3:B65)))&\" \"&CHAR(10)&(INDEX(النتيجة,SMALL(IF(الهدف=$B$2,ROW(النتيجة)-MIN(ROW(النتيجة))+1),ROWS($B$3:B65))))&CHAR(10),\"\")","v":""},null,{"$f":"IFERROR(INDEX(النشاط,SMALL(IF(الهدف=$D$2,ROW(النشاط)-MIN(ROW(النشاط))+1),ROWS($B$3:B65)))&CHAR(10),\"\")","v":""},null,{"$f":"IFERROR(INDEX(النشاط,SMALL(IF(الهدف=$F$2,ROW(النشاط)-MIN(ROW(النشاط))+1),ROWS($B$3:B65)))&CHAR(10),\"\")","v":""},null,{"$f":"IFERROR(INDEX(النشاط,SMALL(IF(الهدف=$H$2,ROW(النشاط)-MIN(ROW(النشاط))+1),ROWS($B$3:B65)))&CHAR(10),\"\")","v":""}]
[null,{"$f":"IFERROR(INDEX(النشاط,SMALL(IF(الهدف=$B$2,ROW(النشاط)-MIN(ROW(النشاط))+1),ROWS($B$3:B66)))&\" \"&CHAR(10)&(INDEX(النتيجة,SMALL(IF(الهدف=$B$2,ROW(النتيجة)-MIN(ROW(النتيجة))+1),ROWS($B$3:B66))))&CHAR(10),\"\")","v":""},null,{"$f":"IFERROR(INDEX(النشاط,SMALL(IF(الهدف=$D$2,ROW(النشاط)-MIN(ROW(النشاط))+1),ROWS($B$3:B66)))&CHAR(10),\"\")","v":""},null,{"$f":"IFERROR(INDEX(النشاط,SMALL(IF(الهدف=$F$2,ROW(النشاط)-MIN(ROW(النشاط))+1),ROWS($B$3:B66)))&CHAR(10),\"\")","v":""},null,{"$f":"IFERROR(INDEX(النشاط,SMALL(IF(الهدف=$H$2,ROW(النشاط)-MIN(ROW(النشاط))+1),ROWS($B$3:B66)))&CHAR(10),\"\")","v":""}]
[null,{"$f":"IFERROR(INDEX(النشاط,SMALL(IF(الهدف=$B$2,ROW(النشاط)-MIN(ROW(النشاط))+1),ROWS($B$3:B67)))&\" \"&CHAR(10)&(INDEX(النتيجة,SMALL(IF(الهدف=$B$2,ROW(النتيجة)-MIN(ROW(النتيجة))+1),ROWS($B$3:B67))))&CHAR(10),\"\")","v":""},null,{"$f":"IFERROR(INDEX(النشاط,SMALL(IF(الهدف=$D$2,ROW(النشاط)-MIN(ROW(النشاط))+1),ROWS($B$3:B67)))&CHAR(10),\"\")","v":""},null,{"$f":"IFERROR(INDEX(النشاط,SMALL(IF(الهدف=$F$2,ROW(النشاط)-MIN(ROW(النشاط))+1),ROWS($B$3:B67)))&CHAR(10),\"\")","v":""},null,{"$f":"IFERROR(INDEX(النشاط,SMALL(IF(الهدف=$H$2,ROW(النشاط)-MIN(ROW(النشاط))+1),ROWS($B$3:B67)))&CHAR(10),\"\")","v":""}]
[null,{"$f":"IFERROR(INDEX(النشاط,SMALL(IF(الهدف=$B$2,ROW(النشاط)-MIN(ROW(النشاط))+1),ROWS($B$3:B68)))&\" \"&CHAR(10)&(INDEX(النتيجة,SMALL(IF(الهدف=$B$2,ROW(النتيجة)-MIN(ROW(النتيجة))+1),ROWS($B$3:B68))))&CHAR(10),\"\")","v":""},null,{"$f":"IFERROR(INDEX(النشاط,SMALL(IF(الهدف=$D$2,ROW(النشاط)-MIN(ROW(النشاط))+1),ROWS($B$3:B68)))&CHAR(10),\"\")","v":""},null,{"$f":"IFERROR(INDEX(النشاط,SMALL(IF(الهدف=$F$2,ROW(النشاط)-MIN(ROW(النشاط))+1),ROWS($B$3:B68)))&CHAR(10),\"\")","v":""},null,{"$f":"IFERROR(INDEX(النشاط,SMALL(IF(الهدف=$H$2,ROW(النشاط)-MIN(ROW(النشاط))+1),ROWS($B$3:B68)))&CHAR(10),\"\")","v":""}]
[null,{"$f":"IFERROR(INDEX(النشاط,SMALL(IF(الهدف=$B$2,ROW(النشاط)-MIN(ROW(النشاط))+1),ROWS($B$3:B69)))&\" \"&CHAR(10)&(INDEX(النتيجة,SMALL(IF(الهدف=$B$2,ROW(النتيجة)-MIN(ROW(النتيجة))+1),ROWS($B$3:B69))))&CHAR(10),\"\")","v":""},null,{"$f":"IFERROR(INDEX(النشاط,SMALL(IF(الهدف=$D$2,ROW(النشاط)-MIN(ROW(النشاط))+1),ROWS($B$3:B69)))&CHAR(10),\"\")","v":""},null,{"$f":"IFERROR(INDEX(النشاط,SMALL(IF(الهدف=$F$2,ROW(النشاط)-MIN(ROW(النشاط))+1),ROWS($B$3:B69)))&CHAR(10),\"\")","v":""},null,{"$f":"IFERROR(INDEX(النشاط,SMALL(IF(الهدف=$H$2,ROW(النشاط)-MIN(ROW(النشاط))+1),ROWS($B$3:B69)))&CHAR(10),\"\")","v":""}]
[null,{"$f":"IFERROR(INDEX(النشاط,SMALL(IF(الهدف=$B$2,ROW(النشاط)-MIN(ROW(النشاط))+1),ROWS($B$3:B70)))&\" \"&CHAR(10)&(INDEX(النتيجة,SMALL(IF(الهدف=$B$2,ROW(النتيجة)-MIN(ROW(النتيجة))+1),ROWS($B$3:B70))))&CHAR(10),\"\")","v":""},null,{"$f":"IFERROR(INDEX(النشاط,SMALL(IF(الهدف=$D$2,ROW(النشاط)-MIN(ROW(النشاط))+1),ROWS($B$3:B70)))&CHAR(10),\"\")","v":""},null,{"$f":"IFERROR(INDEX(النشاط,SMALL(IF(الهدف=$F$2,ROW(النشاط)-MIN(ROW(النشاط))+1),ROWS($B$3:B70)))&CHAR(10),\"\")","v":""},null,{"$f":"IFERROR(INDEX(النشاط,SMALL(IF(الهدف=$H$2,ROW(النشاط)-MIN(ROW(النشاط))+1),ROWS($B$3:B70)))&CHAR(10),\"\")","v":""}]
[null,{"$f":"IFERROR(INDEX(النشاط,SMALL(IF(الهدف=$B$2,ROW(النشاط)-MIN(ROW(النشاط))+1),ROWS($B$3:B71)))&\" \"&CHAR(10)&(INDEX(النتيجة,SMALL(IF(الهدف=$B$2,ROW(النتيجة)-MIN(ROW(النتيجة))+1),ROWS($B$3:B71))))&CHAR(10),\"\")","v":""},null,{"$f":"IFERROR(INDEX(النشاط,SMALL(IF(الهدف=$D$2,ROW(النشاط)-MIN(ROW(النشاط))+1),ROWS($B$3:B71)))&CHAR(10),\"\")","v":""},null,{"$f":"IFERROR(INDEX(النشاط,SMALL(IF(الهدف=$F$2,ROW(النشاط)-MIN(ROW(النشاط))+1),ROWS($B$3:B71)))&CHAR(10),\"\")","v":""},null,{"$f":"IFERROR(INDEX(النشاط,SMALL(IF(الهدف=$H$2,ROW(النشاط)-MIN(ROW(النشاط))+1),ROWS($B$3:B71)))&CHAR(10),\"\")","v":""}]
[null,{"$f":"IFERROR(INDEX(النشاط,SMALL(IF(الهدف=$B$2,ROW(النشاط)-MIN(ROW(النشاط))+1),ROWS($B$3:B72)))&\" \"&CHAR(10)&(INDEX(النتيجة,SMALL(IF(الهدف=$B$2,ROW(النتيجة)-MIN(ROW(النتيجة))+1),ROWS($B$3:B72))))&CHAR(10),\"\")","v":""},null,{"$f":"IFERROR(INDEX(النشاط,SMALL(IF(الهدف=$D$2,ROW(النشاط)-MIN(ROW(النشاط))+1),ROWS($B$3:B72)))&CHAR(10),\"\")","v":""},null,{"$f":"IFERROR(INDEX(النشاط,SMALL(IF(الهدف=$F$2,ROW(النشاط)-MIN(ROW(النشاط))+1),ROWS($B$3:B72)))&CHAR(10),\"\")","v":""},null,{"$f":"IFERROR(INDEX(النشاط,SMALL(IF(الهدف=$H$2,ROW(النشاط)-MIN(ROW(النشاط))+1),ROWS($B$3:B72)))&CHAR(10),\"\")","v":""}]
[null,{"$f":"IFERROR(INDEX(النشاط,SMALL(IF(الهدف=$B$2,ROW(النشاط)-MIN(ROW(النشاط))+1),ROWS($B$3:B73)))&\" \"&CHAR(10)&(INDEX(النتيجة,SMALL(IF(الهدف=$B$2,ROW(النتيجة)-MIN(ROW(النتيجة))+1),ROWS($B$3:B73))))&CHAR(10),\"\")","v":""},null,{"$f":"IFERROR(INDEX(النشاط,SMALL(IF(الهدف=$D$2,ROW(النشاط)-MIN(ROW(النشاط))+1),ROWS($B$3:B73)))&CHAR(10),\"\")","v":""},null,{"$f":"IFERROR(INDEX(النشاط,SMALL(IF(الهدف=$F$2,ROW(النشاط)-MIN(ROW(النشاط))+1),ROWS($B$3:B73)))&CHAR(10),\"\")","v":""},null,{"$f":"IFERROR(INDEX(النشاط,SMALL(IF(الهدف=$H$2,ROW(النشاط)-MIN(ROW(النشاط))+1),ROWS($B$3:B73)))&CHAR(10),\"\")","v":""}]
[null,{"$f":"IFERROR(INDEX(النشاط,SMALL(IF(الهدف=$B$2,ROW(النشاط)-MIN(ROW(النشاط))+1),ROWS($B$3:B74)))&\" \"&CHAR(10)&(INDEX(النتيجة,SMALL(IF(الهدف=$B$2,ROW(النتيجة)-MIN(ROW(النتيجة))+1),ROWS($B$3:B74))))&CHAR(10),\"\")","v":""},null,{"$f":"IFERROR(INDEX(النشاط,SMALL(IF(الهدف=$D$2,ROW(النشاط)-MIN(ROW(النشاط))+1),ROWS($B$3:B74)))&CHAR(10),\"\")","v":""},null,{"$f":"IFERROR(INDEX(النشاط,SMALL(IF(الهدف=$F$2,ROW(النشاط)-MIN(ROW(النشاط))+1),ROWS($B$3:B74)))&CHAR(10),\"\")","v":""},null,{"$f":"IFERROR(INDEX(النشاط,SMALL(IF(الهدف=$H$2,ROW(النشاط)-MIN(ROW(النشاط))+1),ROWS($B$3:B74)))&CHAR(10),\"\")","v":""}]
[null,{"$f":"IFERROR(INDEX(النشاط,SMALL(IF(الهدف=$B$2,ROW(النشاط)-MIN(ROW(النشاط))+1),ROWS($B$3:B75)))&\" \"&CHAR(10)&(INDEX(النتيجة,SMALL(IF(الهدف=$B$2,ROW(النتيجة)-MIN(ROW(النتيجة))+1),ROWS($B$3:B75))))&CHAR(10),\"\")","v":""},null,{"$f":"IFERROR(INDEX(النشاط,SMALL(IF(الهدف=$D$2,ROW(النشاط)-MIN(ROW(النشاط))+1),ROWS($B$3:B75)))&CHAR(10),\"\")","v":""},null,{"$f":"IFERROR(INDEX(النشاط,SMALL(IF(الهدف=$F$2,ROW(النشاط)-MIN(ROW(النشاط))+1),ROWS($B$3:B75)))&CHAR(10),\"\")","v":""},null,{"$f":"IFERROR(INDEX(النشاط,SMALL(IF(الهدف=$H$2,ROW(النشاط)-MIN(ROW(النشاط))+1),ROWS($B$3:B75)))&CHAR(10),\"\")","v":""}]
[null,{"$f":"IFERROR(INDEX(النشاط,SMALL(IF(الهدف=$B$2,ROW(النشاط)-MIN(ROW(النشاط))+1),ROWS($B$3:B76)))&\" \"&CHAR(10)&(INDEX(النتيجة,SMALL(IF(الهدف=$B$2,ROW(النتيجة)-MIN(ROW(النتيجة))+1),ROWS($B$3:B76))))&CHAR(10),\"\")","v":""},null,{"$f":"IFERROR(INDEX(النشاط,SMALL(IF(الهدف=$D$2,ROW(النشاط)-MIN(ROW(النشاط))+1),ROWS($B$3:B76)))&CHAR(10),\"\")","v":""},null,{"$f":"IFERROR(INDEX(النشاط,SMALL(IF(الهدف=$F$2,ROW(النشاط)-MIN(ROW(النشاط))+1),ROWS($B$3:B76)))&CHAR(10),\"\")","v":""},null,{"$f":"IFERROR(INDEX(النشاط,SMALL(IF(الهدف=$H$2,ROW(النشاط)-MIN(ROW(النشاط))+1),ROWS($B$3:B76)))&CHAR(10),\"\")","v":""}]
[null,{"$f":"IFERROR(INDEX(النشاط,SMALL(IF(الهدف=$B$2,ROW(النشاط)-MIN(ROW(النشاط))+1),ROWS($B$3:B77)))&\" \"&CHAR(10)&(INDEX(النتيجة,SMALL(IF(الهدف=$B$2,ROW(النتيجة)-MIN(ROW(النتيجة))+1),ROWS($B$3:B77))))&CHAR(10),\"\")","v":""},null,{"$f":"IFERROR(INDEX(النشاط,SMALL(IF(الهدف=$D$2,ROW(النشاط)-MIN(ROW(النشاط))+1),ROWS($B$3:B77)))&CHAR(10),\"\")","v":""},null,{"$f":"IFERROR(INDEX(النشاط,SMALL(IF(الهدف=$F$2,ROW(النشاط)-MIN(ROW(النشاط))+1),ROWS($B$3:B77)))&CHAR(10),\"\")","v":""},null,{"$f":"IFERROR(INDEX(النشاط,SMALL(IF(الهدف=$H$2,ROW(النشاط)-MIN(ROW(النشاط))+1),ROWS($B$3:B77)))&CHAR(10),\"\")","v":""}]
[null,{"$f":"IFERROR(INDEX(النشاط,SMALL(IF(الهدف=$B$2,ROW(النشاط)-MIN(ROW(النشاط))+1),ROWS($B$3:B78)))&\" \"&CHAR(10)&(INDEX(النتيجة,SMALL(IF(الهدف=$B$2,ROW(النتيجة)-MIN(ROW(النتيجة))+1),ROWS($B$3:B78))))&CHAR(10),\"\")","v":""},null,{"$f":"IFERROR(INDEX(النشاط,SMALL(IF(الهدف=$D$2,ROW(النشاط)-MIN(ROW(النشاط))+1),ROWS($B$3:B78)))&CHAR(10),\"\")","v":""},null,{"$f":"IFERROR(INDEX(النشاط,SMALL(IF(الهدف=$F$2,ROW(النشاط)-MIN(ROW(النشاط))+1),ROWS($B$3:B78)))&CHAR(10),\"\")","v":""},null,{"$f":"IFERROR(INDEX(النشاط,SMALL(IF(الهدف=$H$2,ROW(النشاط)-MIN(ROW(النشاط))+1),ROWS($B$3:B78)))&CHAR(10),\"\")","v":""}]
[null,{"$f":"IFERROR(INDEX(النشاط,SMALL(IF(الهدف=$B$2,ROW(النشاط)-MIN(ROW(النشاط))+1),ROWS($B$3:B79)))&\" \"&CHAR(10)&(INDEX(النتيجة,SMALL(IF(الهدف=$B$2,ROW(النتيجة)-MIN(ROW(النتيجة))+1),ROWS($B$3:B79))))&CHAR(10),\"\")","v":""},null,{"$f":"IFERROR(INDEX(النشاط,SMALL(IF(الهدف=$D$2,ROW(النشاط)-MIN(ROW(النشاط))+1),ROWS($B$3:B79)))&CHAR(10),\"\")","v":""},null,{"$f":"IFERROR(INDEX(النشاط,SMALL(IF(الهدف=$F$2,ROW(النشاط)-MIN(ROW(النشاط))+1),ROWS($B$3:B79)))&CHAR(10),\"\")","v":""},null,{"$f":"IFERROR(INDEX(النشاط,SMALL(IF(الهدف=$H$2,ROW(النشاط)-MIN(ROW(النشاط))+1),ROWS($B$3:B79)))&CHAR(10),\"\")","v":""}]
[null,{"$f":"IFERROR(INDEX(النشاط,SMALL(IF(الهدف=$B$2,ROW(النشاط)-MIN(ROW(النشاط))+1),ROWS($B$3:B80)))&\" \"&CHAR(10)&(INDEX(النتيجة,SMALL(IF(الهدف=$B$2,ROW(النتيجة)-MIN(ROW(النتيجة))+1),ROWS($B$3:B80))))&CHAR(10),\"\")","v":""},null,{"$f":"IFERROR(INDEX(النشاط,SMALL(IF(الهدف=$D$2,ROW(النشاط)-MIN(ROW(النشاط))+1),ROWS($B$3:B80)))&CHAR(10),\"\")","v":""},null,{"$f":"IFERROR(INDEX(النشاط,SMALL(IF(الهدف=$F$2,ROW(النشاط)-MIN(ROW(النشاط))+1),ROWS($B$3:B80)))&CHAR(10),\"\")","v":""},null,{"$f":"IFERROR(INDEX(النشاط,SMALL(IF(الهدف=$H$2,ROW(النشاط)-MIN(ROW(النشاط))+1),ROWS($B$3:B80)))&CHAR(10),\"\")","v":""}]
[null,{"$f":"IFERROR(INDEX(النشاط,SMALL(IF(الهدف=$B$2,ROW(النشاط)-MIN(ROW(النشاط))+1),ROWS($B$3:B81)))&\" \"&CHAR(10)&(INDEX(النتيجة,SMALL(IF(الهدف=$B$2,ROW(النتيجة)-MIN(ROW(النتيجة))+1),ROWS($B$3:B81))))&CHAR(10),\"\")","v":""},null,{"$f":"IFERROR(INDEX(النشاط,SMALL(IF(الهدف=$D$2,ROW(النشاط)-MIN(ROW(النشاط))+1),ROWS($B$3:B81)))&CHAR(10),\"\")","v":""},null,{"$f":"IFERROR(INDEX(النشاط,SMALL(IF(الهدف=$F$2,ROW(النشاط)-MIN(ROW(النشاط))+1),ROWS($B$3:B81)))&CHAR(10),\"\")","v":""},null,{"$f":"IFERROR(INDEX(النشاط,SMALL(IF(الهدف=$H$2,ROW(النشاط)-MIN(ROW(النشاط))+1),ROWS($B$3:B81)))&CHAR(10),\"\")","v":""}]
[null,{"$f":"IFERROR(INDEX(النشاط,SMALL(IF(الهدف=$B$2,ROW(النشاط)-MIN(ROW(النشاط))+1),ROWS($B$3:B82)))&\" \"&CHAR(10)&(INDEX(النتيجة,SMALL(IF(الهدف=$B$2,ROW(النتيجة)-MIN(ROW(النتيجة))+1),ROWS($B$3:B82))))&CHAR(10),\"\")","v":""},null,{"$f":"IFERROR(INDEX(النشاط,SMALL(IF(الهدف=$D$2,ROW(النشاط)-MIN(ROW(النشاط))+1),ROWS($B$3:B82)))&CHAR(10),\"\")","v":""},null,{"$f":"IFERROR(INDEX(النشاط,SMALL(IF(الهدف=$F$2,ROW(النشاط)-MIN(ROW(النشاط))+1),ROWS($B$3:B82)))&CHAR(10),\"\")","v":""},null,{"$f":"IFERROR(INDEX(النشاط,SMALL(IF(الهدف=$H$2,ROW(النشاط)-MIN(ROW(النشاط))+1),ROWS($B$3:B82)))&CHAR(10),\"\")","v":""}]
[null,{"$f":"IFERROR(INDEX(النشاط,SMALL(IF(الهدف=$B$2,ROW(النشاط)-MIN(ROW(النشاط))+1),ROWS($B$3:B83)))&\" \"&CHAR(10)&(INDEX(النتيجة,SMALL(IF(الهدف=$B$2,ROW(النتيجة)-MIN(ROW(النتيجة))+1),ROWS($B$3:B83))))&CHAR(10),\"\")","v":""},null,{"$f":"IFERROR(INDEX(النشاط,SMALL(IF(الهدف=$D$2,ROW(النشاط)-MIN(ROW(النشاط))+1),ROWS($B$3:B83)))&CHAR(10),\"\")","v":""},null,{"$f":"IFERROR(INDEX(النشاط,SMALL(IF(الهدف=$F$2,ROW(النشاط)-MIN(ROW(النشاط))+1),ROWS($B$3:B83)))&CHAR(10),\"\")","v":""},null,{"$f":"IFERROR(INDEX(النشاط,SMALL(IF(الهدف=$H$2,ROW(النشاط)-MIN(ROW(النشاط))+1),ROWS($B$3:B83)))&CHAR(10),\"\")","v":""}]
[null,{"$f":"IFERROR(INDEX(النشاط,SMALL(IF(الهدف=$B$2,ROW(النشاط)-MIN(ROW(النشاط))+1),ROWS($B$3:B84)))&\" \"&CHAR(10)&(INDEX(النتيجة,SMALL(IF(الهدف=$B$2,ROW(النتيجة)-MIN(ROW(النتيجة))+1),ROWS($B$3:B84))))&CHAR(10),\"\")","v":""},null,{"$f":"IFERROR(INDEX(النشاط,SMALL(IF(الهدف=$D$2,ROW(النشاط)-MIN(ROW(النشاط))+1),ROWS($B$3:B84)))&CHAR(10),\"\")","v":""},null,{"$f":"IFERROR(INDEX(النشاط,SMALL(IF(الهدف=$F$2,ROW(النشاط)-MIN(ROW(النشاط))+1),ROWS($B$3:B84)))&CHAR(10),\"\")","v":""},null,{"$f":"IFERROR(INDEX(النشاط,SMALL(IF(الهدف=$H$2,ROW(النشاط)-MIN(ROW(النشاط))+1),ROWS($B$3:B84)))&CHAR(10),\"\")","v":""}]
[null,{"$f":"IFERROR(INDEX(النشاط,SMALL(IF(الهدف=$B$2,ROW(النشاط)-MIN(ROW(النشاط))+1),ROWS($B$3:B85)))&\" \"&CHAR(10)&(INDEX(النتيجة,SMALL(IF(الهدف=$B$2,ROW(النتيجة)-MIN(ROW(النتيجة))+1),ROWS($B$3:B85))))&CHAR(10),\"\")","v":""},null,{"$f":"IFERROR(INDEX(النشاط,SMALL(IF(الهدف=$D$2,ROW(النشاط)-MIN(ROW(النشاط))+1),ROWS($B$3:B85)))&CHAR(10),\"\")","v":""},null,{"$f":"IFERROR(INDEX(النشاط,SMALL(IF(الهدف=$F$2,ROW(النشاط)-MIN(ROW(النشاط))+1),ROWS($B$3:B85)))&CHAR(10),\"\")","v":""},null,{"$f":"IFERROR(INDEX(النشاط,SMALL(IF(الهدف=$H$2,ROW(النشاط)-MIN(ROW(النشاط))+1),ROWS($B$3:B85)))&CHAR(10),\"\")","v":""}]
[null,{"$f":"IFERROR(INDEX(النشاط,SMALL(IF(الهدف=$B$2,ROW(النشاط)-MIN(ROW(النشاط))+1),ROWS($B$3:B86)))&\" \"&CHAR(10)&(INDEX(النتيجة,SMALL(IF(الهدف=$B$2,ROW(النتيجة)-MIN(ROW(النتيجة))+1),ROWS($B$3:B86))))&CHAR(10),\"\")","v":""},null,{"$f":"IFERROR(INDEX(النشاط,SMALL(IF(الهدف=$D$2,ROW(النشاط)-MIN(ROW(النشاط))+1),ROWS($B$3:B86)))&CHAR(10),\"\")","v":""},null,{"$f":"IFERROR(INDEX(النشاط,SMALL(IF(الهدف=$F$2,ROW(النشاط)-MIN(ROW(النشاط))+1),ROWS($B$3:B86)))&CHAR(10),\"\")","v":""},null,{"$f":"IFERROR(INDEX(النشاط,SMALL(IF(الهدف=$H$2,ROW(النشاط)-MIN(ROW(النشاط))+1),ROWS($B$3:B86)))&CHAR(10),\"\")","v":""}]
[null,{"$f":"IFERROR(INDEX(النشاط,SMALL(IF(الهدف=$B$2,ROW(النشاط)-MIN(ROW(النشاط))+1),ROWS($B$3:B87)))&\" \"&CHAR(10)&(INDEX(النتيجة,SMALL(IF(الهدف=$B$2,ROW(النتيجة)-MIN(ROW(النتيجة))+1),ROWS($B$3:B87))))&CHAR(10),\"\")","v":""},null,{"$f":"IFERROR(INDEX(النشاط,SMALL(IF(الهدف=$D$2,ROW(النشاط)-MIN(ROW(النشاط))+1),ROWS($B$3:B87)))&CHAR(10),\"\")","v":""},null,{"$f":"IFERROR(INDEX(النشاط,SMALL(IF(الهدف=$F$2,ROW(النشاط)-MIN(ROW(النشاط))+1),ROWS($B$3:B87)))&CHAR(10),\"\")","v":""},null,{"$f":"IFERROR(INDEX(النشاط,SMALL(IF(الهدف=$H$2,ROW(النشاط)-MIN(ROW(النشاط))+1),ROWS($B$3:B87)))&CHAR(10),\"\")","v":""}]
[null,{"$f":"IFERROR(INDEX(النشاط,SMALL(IF(الهدف=$B$2,ROW(النشاط)-MIN(ROW(النشاط))+1),ROWS($B$3:B88)))&\" \"&CHAR(10)&(INDEX(النتيجة,SMALL(IF(الهدف=$B$2,ROW(النتيجة)-MIN(ROW(النتيجة))+1),ROWS($B$3:B88))))&CHAR(10),\"\")","v":""},null,{"$f":"IFERROR(INDEX(النشاط,SMALL(IF(الهدف=$D$2,ROW(النشاط)-MIN(ROW(النشاط))+1),ROWS($B$3:B88)))&CHAR(10),\"\")","v":""},null,{"$f":"IFERROR(INDEX(النشاط,SMALL(IF(الهدف=$F$2,ROW(النشاط)-MIN(ROW(النشاط))+1),ROWS($B$3:B88)))&CHAR(10),\"\")","v":""},null,{"$f":"IFERROR(INDEX(النشاط,SMALL(IF(الهدف=$H$2,ROW(النشاط)-MIN(ROW(النشاط))+1),ROWS($B$3:B88)))&CHAR(10),\"\")","v":""}]
[null,{"$f":"IFERROR(INDEX(النشاط,SMALL(IF(الهدف=$B$2,ROW(النشاط)-MIN(ROW(النشاط))+1),ROWS($B$3:B89)))&\" \"&CHAR(10)&(INDEX(النتيجة,SMALL(IF(الهدف=$B$2,ROW(النتيجة)-MIN(ROW(النتيجة))+1),ROWS($B$3:B89))))&CHAR(10),\"\")","v":""},null,{"$f":"IFERROR(INDEX(النشاط,SMALL(IF(الهدف=$D$2,ROW(النشاط)-MIN(ROW(النشاط))+1),ROWS($B$3:B89)))&CHAR(10),\"\")","v":""},null,{"$f":"IFERROR(INDEX(النشاط,SMALL(IF(الهدف=$F$2,ROW(النشاط)-MIN(ROW(النشاط))+1),ROWS($B$3:B89)))&CHAR(10),\"\")","v":""},null,{"$f":"IFERROR(INDEX(النشاط,SMALL(IF(الهدف=$H$2,ROW(النشاط)-MIN(ROW(النشاط))+1),ROWS($B$3:B89)))&CHAR(10),\"\")","v":""}]
[null,{"$f":"IFERROR(INDEX(النشاط,SMALL(IF(الهدف=$B$2,ROW(النشاط)-MIN(ROW(النشاط))+1),ROWS($B$3:B90)))&\" \"&CHAR(10)&(INDEX(النتيجة,SMALL(IF(الهدف=$B$2,ROW(النتيجة)-MIN(ROW(النتيجة))+1),ROWS($B$3:B90))))&CHAR(10),\"\")","v":""},null,{"$f":"IFERROR(INDEX(النشاط,SMALL(IF(الهدف=$D$2,ROW(النشاط)-MIN(ROW(النشاط))+1),ROWS($B$3:B90)))&CHAR(10),\"\")","v":""},null,{"$f":"IFERROR(INDEX(النشاط,SMALL(IF(الهدف=$F$2,ROW(النشاط)-MIN(ROW(النشاط))+1),ROWS($B$3:B90)))&CHAR(10),\"\")","v":""},null,{"$f":"IFERROR(INDEX(النشاط,SMALL(IF(الهدف=$H$2,ROW(النشاط)-MIN(ROW(النشاط))+1),ROWS($B$3:B90)))&CHAR(10),\"\")","v":""}]
[null,{"$f":"IFERROR(INDEX(النشاط,SMALL(IF(الهدف=$B$2,ROW(النشاط)-MIN(ROW(النشاط))+1),ROWS($B$3:B91)))&\" \"&CHAR(10)&(INDEX(النتيجة,SMALL(IF(الهدف=$B$2,ROW(النتيجة)-MIN(ROW(النتيجة))+1),ROWS($B$3:B91))))&CHAR(10),\"\")","v":""},null,{"$f":"IFERROR(INDEX(النشاط,SMALL(IF(الهدف=$D$2,ROW(النشاط)-MIN(ROW(النشاط))+1),ROWS($B$3:B91)))&CHAR(10),\"\")","v":""},null,{"$f":"IFERROR(INDEX(النشاط,SMALL(IF(الهدف=$F$2,ROW(النشاط)-MIN(ROW(النشاط))+1),ROWS($B$3:B91)))&CHAR(10),\"\")","v":""},null,{"$f":"IFERROR(INDEX(النشاط,SMALL(IF(الهدف=$H$2,ROW(النشاط)-MIN(ROW(النشاط))+1),ROWS($B$3:B91)))&CHAR(10),\"\")","v":""}]
[null,{"$f":"IFERROR(INDEX(النشاط,SMALL(IF(الهدف=$B$2,ROW(النشاط)-MIN(ROW(النشاط))+1),ROWS($B$3:B92)))&\" \"&CHAR(10)&(INDEX(النتيجة,SMALL(IF(الهدف=$B$2,ROW(النتيجة)-MIN(ROW(النتيجة))+1),ROWS($B$3:B92))))&CHAR(10),\"\")","v":""},null,{"$f":"IFERROR(INDEX(النشاط,SMALL(IF(الهدف=$D$2,ROW(النشاط)-MIN(ROW(النشاط))+1),ROWS($B$3:B92)))&CHAR(10),\"\")","v":""},null,{"$f":"IFERROR(INDEX(النشاط,SMALL(IF(الهدف=$F$2,ROW(النشاط)-MIN(ROW(النشاط))+1),ROWS($B$3:B92)))&CHAR(10),\"\")","v":""},null,{"$f":"IFERROR(INDEX(النشاط,SMALL(IF(الهدف=$H$2,ROW(النشاط)-MIN(ROW(النشاط))+1),ROWS($B$3:B92)))&CHAR(10),\"\")","v":""}]
[null,{"$f":"IFERROR(INDEX(النشاط,SMALL(IF(الهدف=$B$2,ROW(النشاط)-MIN(ROW(النشاط))+1),ROWS($B$3:B93)))&\" \"&CHAR(10)&(INDEX(النتيجة,SMALL(IF(الهدف=$B$2,ROW(النتيجة)-MIN(ROW(النتيجة))+1),ROWS($B$3:B93))))&CHAR(10),\"\")","v":""},null,{"$f":"IFERROR(INDEX(النشاط,SMALL(IF(الهدف=$D$2,ROW(النشاط)-MIN(ROW(النشاط))+1),ROWS($B$3:B93)))&CHAR(10),\"\")","v":""},null,{"$f":"IFERROR(INDEX(النشاط,SMALL(IF(الهدف=$F$2,ROW(النشاط)-MIN(ROW(النشاط))+1),ROWS($B$3:B93)))&CHAR(10),\"\")","v":""},null,{"$f":"IFERROR(INDEX(النشاط,SMALL(IF(الهدف=$H$2,ROW(النشاط)-MIN(ROW(النشاط))+1),ROWS($B$3:B93)))&CHAR(10),\"\")","v":""}]
[null,{"$f":"IFERROR(INDEX(النشاط,SMALL(IF(الهدف=$B$2,ROW(النشاط)-MIN(ROW(النشاط))+1),ROWS($B$3:B94)))&\" \"&CHAR(10)&(INDEX(النتيجة,SMALL(IF(الهدف=$B$2,ROW(النتيجة)-MIN(ROW(النتيجة))+1),ROWS($B$3:B94))))&CHAR(10),\"\")","v":""},null,{"$f":"IFERROR(INDEX(النشاط,SMALL(IF(الهدف=$D$2,ROW(النشاط)-MIN(ROW(النشاط))+1),ROWS($B$3:B94)))&CHAR(10),\"\")","v":""},null,{"$f":"IFERROR(INDEX(النشاط,SMALL(IF(الهدف=$F$2,ROW(النشاط)-MIN(ROW(النشاط))+1),ROWS($B$3:B94)))&CHAR(10),\"\")","v":""},null,{"$f":"IFERROR(INDEX(النشاط,SMALL(IF(الهدف=$H$2,ROW(النشاط)-MIN(ROW(النشاط))+1),ROWS($B$3:B94)))&CHAR(10),\"\")","v":""}]
[null,{"$f":"IFERROR(INDEX(النشاط,SMALL(IF(الهدف=$B$2,ROW(النشاط)-MIN(ROW(النشاط))+1),ROWS($B$3:B95)))&\" \"&CHAR(10)&(INDEX(النتيجة,SMALL(IF(الهدف=$B$2,ROW(النتيجة)-MIN(ROW(النتيجة))+1),ROWS($B$3:B95))))&CHAR(10),\"\")","v":""},null,{"$f":"IFERROR(INDEX(النشاط,SMALL(IF(الهدف=$D$2,ROW(النشاط)-MIN(ROW(النشاط))+1),ROWS($B$3:B95)))&CHAR(10),\"\")","v":""},null,{"$f":"IFERROR(INDEX(النشاط,SMALL(IF(الهدف=$F$2,ROW(النشاط)-MIN(ROW(النشاط))+1),ROWS($B$3:B95)))&CHAR(10),\"\")","v":""},null,{"$f":"IFERROR(INDEX(النشاط,SMALL(IF(الهدف=$H$2,ROW(النشاط)-MIN(ROW(النشاط))+1),ROWS($B$3:B95)))&CHAR(10),\"\")","v":""}]
[null,{"$f":"IFERROR(INDEX(النشاط,SMALL(IF(الهدف=$B$2,ROW(النشاط)-MIN(ROW(النشاط))+1),ROWS($B$3:B96)))&\" \"&CHAR(10)&(INDEX(النتيجة,SMALL(IF(الهدف=$B$2,ROW(النتيجة)-MIN(ROW(النتيجة))+1),ROWS($B$3:B96))))&CHAR(10),\"\")","v":""},null,{"$f":"IFERROR(INDEX(النشاط,SMALL(IF(الهدف=$D$2,ROW(النشاط)-MIN(ROW(النشاط))+1),ROWS($B$3:B96)))&CHAR(10),\"\")","v":""},null,{"$f":"IFERROR(INDEX(النشاط,SMALL(IF(الهدف=$F$2,ROW(النشاط)-MIN(ROW(النشاط))+1),ROWS($B$3:B96)))&CHAR(10),\"\")","v":""},null,{"$f":"IFERROR(INDEX(النشاط,SMALL(IF(الهدف=$H$2,ROW(النشاط)-MIN(ROW(النشاط))+1),ROWS($B$3:B96)))&CHAR(10),\"\")","v":""}]
[null,{"$f":"IFERROR(INDEX(النشاط,SMALL(IF(الهدف=$B$2,ROW(النشاط)-MIN(ROW(النشاط))+1),ROWS($B$3:B97)))&\" \"&CHAR(10)&(INDEX(النتيجة,SMALL(IF(الهدف=$B$2,ROW(النتيجة)-MIN(ROW(النتيجة))+1),ROWS($B$3:B97))))&CHAR(10),\"\")","v":""},null,{"$f":"IFERROR(INDEX(النشاط,SMALL(IF(الهدف=$D$2,ROW(النشاط)-MIN(ROW(النشاط))+1),ROWS($B$3:B97)))&CHAR(10),\"\")","v":""},null,{"$f":"IFERROR(INDEX(النشاط,SMALL(IF(الهدف=$F$2,ROW(النشاط)-MIN(ROW(النشاط))+1),ROWS($B$3:B97)))&CHAR(10),\"\")","v":""},null,{"$f":"IFERROR(INDEX(النشاط,SMALL(IF(الهدف=$H$2,ROW(النشاط)-MIN(ROW(النشاط))+1),ROWS($B$3:B97)))&CHAR(10),\"\")","v":""}]
[null,{"$f":"IFERROR(INDEX(النشاط,SMALL(IF(الهدف=$B$2,ROW(النشاط)-MIN(ROW(النشاط))+1),ROWS($B$3:B98)))&\" \"&CHAR(10)&(INDEX(النتيجة,SMALL(IF(الهدف=$B$2,ROW(النتيجة)-MIN(ROW(النتيجة))+1),ROWS($B$3:B98))))&CHAR(10),\"\")","v":""},null,{"$f":"IFERROR(INDEX(النشاط,SMALL(IF(الهدف=$D$2,ROW(النشاط)-MIN(ROW(النشاط))+1),ROWS($B$3:B98)))&CHAR(10),\"\")","v":""},null,{"$f":"IFERROR(INDEX(النشاط,SMALL(IF(الهدف=$F$2,ROW(النشاط)-MIN(ROW(النشاط))+1),ROWS($B$3:B98)))&CHAR(10),\"\")","v":""},null,{"$f":"IFERROR(INDEX(النشاط,SMALL(IF(الهدف=$H$2,ROW(النشاط)-MIN(ROW(النشاط))+1),ROWS($B$3:B98)))&CHAR(10),\"\")","v":""}]
[null,{"$f":"IFERROR(INDEX(النشاط,SMALL(IF(الهدف=$B$2,ROW(النشاط)-MIN(ROW(النشاط))+1),ROWS($B$3:B99)))&\" \"&CHAR(10)&(INDEX(النتيجة,SMALL(IF(الهدف=$B$2,ROW(النتيجة)-MIN(ROW(النتيجة))+1),ROWS($B$3:B99))))&CHAR(10),\"\")","v":""},null,{"$f":"IFERROR(INDEX(النشاط,SMALL(IF(الهدف=$D$2,ROW(النشاط)-MIN(ROW(النشاط))+1),ROWS($B$3:B99)))&CHAR(10),\"\")","v":""},null,{"$f":"IFERROR(INDEX(النشاط,SMALL(IF(الهدف=$F$2,ROW(النشاط)-MIN(ROW(النشاط))+1),ROWS($B$3:B99)))&CHAR(10),\"\")","v":""},null,{"$f":"IFERROR(INDEX(النشاط,SMALL(IF(الهدف=$H$2,ROW(النشاط)-MIN(ROW(النشاط))+1),ROWS($B$3:B99)))&CHAR(10),\"\")","v":""}]
[null,{"$f":"IFERROR(INDEX(النشاط,SMALL(IF(الهدف=$B$2,ROW(النشاط)-MIN(ROW(النشاط))+1),ROWS($B$3:B100)))&\" \"&CHAR(10)&(INDEX(النتيجة,SMALL(IF(الهدف=$B$2,ROW(النتيجة)-MIN(ROW(النتيجة))+1),ROWS($B$3:B100))))&CHAR(10),\"\")","v":""},null,{"$f":"IFERROR(INDEX(النشاط,SMALL(IF(الهدف=$D$2,ROW(النشاط)-MIN(ROW(النشاط))+1),ROWS($B$3:B100)))&CHAR(10),\"\")","v":""},null,{"$f":"IFERROR(INDEX(النشاط,SMALL(IF(الهدف=$F$2,ROW(النشاط)-MIN(ROW(النشاط))+1),ROWS($B$3:B100)))&CHAR(10),\"\")","v":""},null,{"$f":"IFERROR(INDEX(النشاط,SMALL(IF(الهدف=$H$2,ROW(النشاط)-MIN(ROW(النشاط))+1),ROWS($B$3:B100)))&CHAR(10),\"\")","v":""}]

{"sheet":"حول","index":2,"n_rows":6,"n_cols":1,"rows_kept":6}
["حول هذا المصنف"]
["إرشادات لمستخدمي برامج قراءة الشاشة"]
["توجد 3 أوراق عمل في هذا المصنف. \n\nبيانات خارطة الطريق\nخارطة الطريق المرنة\nحول\n\nتوجد الإرشادات لكل ورقة عمل في العمود A بداية من الخلية A1 في كل ورقة عمل. وهي موجودة كنص مكتوب ومخفي. ترشدك كل خطوة عبر المعلومات في هذا الصف. وتستمر الخطوات التالية في الخلية A2 وA3 إلى آخره، ما لم يذكر غير ذلك بوضوح. على سبيل المثال، قد يقول نص الإرشادات \"استمر حتى الخلية A6\" من أجل الخطوة التالية. \n\nلن تتم طباعة النص المخفي.\n\nلإزالة هذه الإرشادات من أي ورقة عمل، ببساطة قم بحذف العمود A.\n"]
["حول هذا المصنف"]
["أدخل معلومات الحدث الرئيسي في ورقة العمل \"بيانات خارطة الطريق\". تأكد من الفرز حسب الأولوية متبوعاً بحدث رئيسي لالتقاط طريقة العرض \"مكتمل\" و\"حالي\" و\"قصير الأمد\" و\"المستقبل\" في الأولوية المتناقصة--مع العناصر ذات الأولوية المرتفعة المدرجة في الأعلى. يتم تحديث \"خارطة الطريق\" في ورقة العمل \"خارطة الطريق المرنة\" تلقائياً.\n"]
["هذا هو الإرشاد الأخير في ورقة العمل هذه."]